Departmental Family,Entity,Date,Expense type,Expense area,Description,Supplier,Transaction Number,Amount,
Department for Education,DEPARTMENT FOR EDUCATION,01/06/2015,Professional Services Consultancy and Contingent Labour,Children in Care Division,"Advisory services including fees, travel and expenses",METHODS CONSULTING LTD,4000208993,60000.00,
Department for Education,DEPARTMENT FOR EDUCATION,26/06/2015,Travel,Finance and Commercial Group,"Staff business travel including air, coach, ferry, rail, taxi and car hire",REDFERN TRAVEL LTD,4000211059,1115.66,
Department for Education,DEPARTMENT FOR EDUCATION,02/06/2015,Grants,Assessment and Curriculum and General Qualifications Group,Current grant funding to other government departments for DfE's contribution to jointly funded programmes ,DEPARTMENT FOR CULTURE MEDIA & SPORT,2001122,19158560.00,
Department for Education,DEPARTMENT FOR EDUCATION,02/06/2015,Grants,Assessment and Curriculum and General Qualifications Group,Current grant funding to other government departments for DfE's contribution to jointly funded programmes ,DEPARTMENT FOR CULTURE MEDIA & SPORT,2001122,1021880.00,
Department for Education,DEPARTMENT FOR EDUCATION,12/06/2015,Grants,Academies Delivery Group,Capital grants paid to educational establishments,BICESTER COMMUNITY COLLEGE,4000210100,80000.00,
Department for Education,DEPARTMENT FOR EDUCATION,11/06/2015,Grants,Children's Services and Departmental Strategy Safeguarding Group,Current grants paid to organisations including arms length bodies and educational establishments,OFFICE OF THE CHILDRENS COMMISSIONER,2001124,234547.73,
Department for Education,DEPARTMENT FOR EDUCATION,19/06/2015,Programme costs,Closing the Gap Group,"Funding to deliver policies (excluding consultancy) paid to third parties via a service delivery contract. This funding will be paid by the supplier to the Education Training Foundation (ETF), who are responsible for the day to day project work.",DEPARTMENT FOR BUSINESS INNOVATION & SKILLS,2001129,4800000.00,
Department for Education,DEPARTMENT FOR EDUCATION,01/06/2015,Grants,Office of the Schools Commissioner Group,Grants to third sector organisations / not for profit organisations and other businesses,WEST THORNTON PRIMARY ACADEMY,4000208936,50000.00,
Department for Education,DEPARTMENT FOR EDUCATION,01/06/2015,Grants,Office of the Schools Commissioner Group,Grants to third sector organisations / not for profit organisations and other businesses,THE VILLAGE ACADEMY TRUST,4000208937,50000.00,
Department for Education,DEPARTMENT FOR EDUCATION,01/06/2015,Grants,Academies Delivery Group,Grants to third sector organisations / not for profit organisations and other businesses,THE DIOCESE OF CHELMSFORD VINE SCHOOLS TRUST,4000208941,25000.00,
Department for Education,DEPARTMENT FOR EDUCATION,01/06/2015,Grants,Academies Delivery Group,Grants to third sector organisations / not for profit organisations and other businesses,WELLSWAY MULTI ACADEMY TRUST,4000208942,35000.00,
Department for Education,DEPARTMENT FOR EDUCATION,04/06/2015,Facilities,School Standards Group,"Building maintenance and repair, including repainting, replacing flooring, etc.",DTZ MANAGEMENT SERVICES LTD,4000209461,26677.17,
Department for Education,DEPARTMENT FOR EDUCATION,29/06/2015,Facilities,School Standards Group,"Building maintenance and repair, including repainting, replacing flooring, etc.",DTZ MANAGEMENT SERVICES LTD,4000211094,41580.81,
Department for Education,DEPARTMENT FOR EDUCATION,01/06/2015,Grants,Academies Delivery Group,Grants to third sector organisations / not for profit organisations and other businesses,DANE COURT GRAMMAR SCHOOL,4000208949,40000.00,
Department for Education,DEPARTMENT FOR EDUCATION,01/06/2015,Programme costs,Children in Care Division,Funding to deliver policies (excluding consultancy) paid to third parties via a service delivery contract,CORAM CLC,4000208953,40441.22,
Department for Education,DEPARTMENT FOR EDUCATION,01/06/2015,Grants,Families Group,Grants to third sector organisations / not for profit organisations and other businesses,CORNERSTONE TRAINING & SUPPORT LTD,4000208957,29545.00,
Department for Education,DEPARTMENT FOR EDUCATION,01/06/2015,Grants,Office of the Schools Commissioner Group,Grants to third sector organisations / not for profit organisations and other businesses,PENINSULAR EDUCATION TRUST,4000208959,75000.00,
Department for Education,DEPARTMENT FOR EDUCATION,01/06/2015,Grants,Children's Services and Departmental Strategy Safeguarding Group,Grants to third sector organisations / not for profit organisations and other businesses,DONCASTER CHILDRENS TRUST,4000208960,1498608.00,
Department for Education,DEPARTMENT FOR EDUCATION,01/06/2015,Grants,Academies Delivery Group,Grants to third sector organisations / not for profit organisations and other businesses,CROSS FARM INFANT SCHOOL SURREY,4000208961,110000.00,
Department for Education,DEPARTMENT FOR EDUCATION,01/06/2015,Grants,Children in Care Division,Grants to third sector organisations / not for profit organisations and other businesses,THE SHARE FOUNDATION 3RD PARTY TRUST,4000208962,240600.00,
Department for Education,DEPARTMENT FOR EDUCATION,01/06/2015,Grants,Families Group,Grants to third sector organisations / not for profit organisations and other businesses,MATCH FOSTER CARE,4000208967,175259.00,
Department for Education,DEPARTMENT FOR EDUCATION,01/06/2015,Grants,Free School Group,Grants to third sector organisations / not for profit organisations and other businesses,RON DEARING UTC TRUST LTD,4000208975,60000.00,
Department for Education,DEPARTMENT FOR EDUCATION,01/06/2015,Grants,Academies Delivery Group,Grants to third sector organisations / not for profit organisations and other businesses,SHAW EDUCATION TRUST,4000208977,55000.00,
Department for Education,DEPARTMENT FOR EDUCATION,01/06/2015,Grants,Free School Group,Grants to third sector organisations / not for profit organisations and other businesses,THE WHERRY SCHOOL TRUST,4000208978,66000.00,
Department for Education,DEPARTMENT FOR EDUCATION,11/06/2015,Professional Services Consultancy and Contingent Labour,"Childcare, Special Educational Needs and Children's Strategy Group","Advisory services including fees, travel and expenses",ATKINS LTD,4000209994,112732.84,
Department for Education,DEPARTMENT FOR EDUCATION,01/06/2015,Programme costs,"Childcare, Special Educational Needs and Children's Strategy Group",Funding to deliver policies (excluding consultancy) paid to third parties via a service delivery contract,NCB,4000208996,3446167.20,
Department for Education,DEPARTMENT FOR EDUCATION,01/06/2015,Grants,Academies Delivery Group,To clear budget deficit liability of a maintained school to facilitate conversion to an academy.,WARRINGTON BOROUGH COUNCIL,4000209006,91864.37,
Department for Education,DEPARTMENT FOR EDUCATION,01/06/2015,Grants,"Childcare, Special Educational Needs and Children's Strategy Group",Grants to third sector organisations / not for profit organisations and other businesses,I CAN CHARITY,4000209015,39092.49,
Department for Education,NATIONAL COLLEGE FOR TEACHING AND LEADERSHIP AGENCY,03/06/2015,Professional Services Other,Delivery Directorate,"Fees / expenses of professionals, for example to implement advice or changes",FUTURE LEADERS LTD,4000209344,635000.00,
Department for Education,DEPARTMENT FOR EDUCATION,01/06/2015,Energy and Fuels,Property Asset Management Group,Electricity supply,EDF ENERGY LTD,4000209018,102502.23,
Department for Education,DEPARTMENT FOR EDUCATION,01/06/2015,Grants,"Childcare, Special Educational Needs and Children's Strategy Group",Grants to third sector organisations / not for profit organisations and other businesses,THE FAMILY FUND TRUST,4000209019,2238569.00,
Department for Education,DEPARTMENT FOR EDUCATION,01/06/2015,Grants,Assessment and Curriculum and General Qualifications Group,Grants to third sector organisations / not for profit organisations and other businesses,UNIVERSITY OF CAMBRIDGE,4000209020,219315.34,
Department for Education,DEPARTMENT FOR EDUCATION,01/06/2015,Grants,Families Group,Grants to third sector organisations / not for profit organisations and other businesses,THE FOSTERING NETWORK,4000209022,65843.16,
Department for Education,NATIONAL COLLEGE FOR TEACHING AND LEADERSHIP AGENCY,03/06/2015,Professional Services Other,Delivery Directorate,"Fees / expenses of professionals, for example to implement advice or changes",TEACHING LEADERS,4000209407,488842.00,
Department for Education,DEPARTMENT FOR EDUCATION,02/06/2015,Programme costs,Systems and Accountability Group,Funding to deliver policies (excluding consultancy) paid to third parties via a service delivery contract,RM EDUCATION PLC,4000209038,39969.17,
Department for Education,DEPARTMENT FOR EDUCATION,02/06/2015,Grants,Children in Care Division,Grants to third sector organisations / not for profit organisations and other businesses,THE SHARE FOUNDATION 3RD PARTY TRUST,4000209049,28200.00,
Department for Education,NATIONAL COLLEGE FOR TEACHING AND LEADERSHIP AGENCY,03/06/2015,Professional Services Other,Delivery Directorate,"Fees / expenses of professionals, for example to implement advice or changes",TEACHING LEADERS,4000209407,63578.00,
Department for Education,DEPARTMENT FOR EDUCATION,02/06/2015,Grants,Children in Care Division,Grants to third sector organisations / not for profit organisations and other businesses,ADOPTION MATTERS NORTH WEST,4000209078,53664.42,
Department for Education,NATIONAL COLLEGE FOR TEACHING AND LEADERSHIP AGENCY,02/06/2015,Programme costs,Delivery Directorate,Funding to deliver policies (excluding consultancy) paid to third parties via a service delivery contract,ECCTIS LTD,4000209095,26790.00,
Department for Education,DEPARTMENT FOR EDUCATION,02/06/2015,Programme costs,Assessment and Curriculum and General Qualifications Group,Funding to deliver policies (excluding consultancy) paid to third parties via a service delivery contract,IOP INSTITUTE OF PHYSICS,4000209106,143764.72,
Department for Education,NATIONAL COLLEGE FOR TEACHING AND LEADERSHIP AGENCY,03/06/2015,Grants,Operations Directorate,Grants to third sector organisations / not for profit organisations and other businesses,MIDDLESEX UNIVERSITY,4000209109,89190.00,
Department for Education,NATIONAL COLLEGE FOR TEACHING AND LEADERSHIP AGENCY,03/06/2015,Grants,Delivery Directorate,Grants to third sector organisations / not for profit organisations and other businesses,MIDDLESEX UNIVERSITY,4000209109,19520.00,
Department for Education,NATIONAL COLLEGE FOR TEACHING AND LEADERSHIP AGENCY,03/06/2015,Grants,Operations Directorate,Grants to third sector organisations / not for profit organisations and other businesses,SOMERSET COUNTY COUNCIL,4000209118,38850.00,
Department for Education,NATIONAL COLLEGE FOR TEACHING AND LEADERSHIP AGENCY,03/06/2015,Grants,Delivery Directorate,Grants to third sector organisations / not for profit organisations and other businesses,SOMERSET COUNTY COUNCIL,4000209118,29700.00,
Department for Education,NATIONAL COLLEGE FOR TEACHING AND LEADERSHIP AGENCY,03/06/2015,Grants,Delivery Directorate,Grants to third sector organisations / not for profit organisations and other businesses,UNIVERSITY OF GREENWICH,4000209119,9600.00,
Department for Education,NATIONAL COLLEGE FOR TEACHING AND LEADERSHIP AGENCY,03/06/2015,Grants,Operations Directorate,Grants to third sector organisations / not for profit organisations and other businesses,UNIVERSITY OF GREENWICH,4000209119,120640.00,
Department for Education,NATIONAL COLLEGE FOR TEACHING AND LEADERSHIP AGENCY,03/06/2015,Grants,Operations Directorate,Grants to third sector organisations / not for profit organisations and other businesses,UNIVERSITY OF GREENWICH,4000209119,22480.00,
Department for Education,NATIONAL COLLEGE FOR TEACHING AND LEADERSHIP AGENCY,03/06/2015,Grants,Operations Directorate,Grants to third sector organisations / not for profit organisations and other businesses,UNIVERSITY OF GREENWICH,4000209119,6720.00,
Department for Education,NATIONAL COLLEGE FOR TEACHING AND LEADERSHIP AGENCY,03/06/2015,Grants,Delivery Directorate,Grants to third sector organisations / not for profit organisations and other businesses,UNIVERSITY OF GREENWICH,4000209119,28889.20,
Department for Education,DEPARTMENT FOR EDUCATION,03/06/2015,Grants,Free School Group,Grants to third sector organisations / not for profit organisations and other businesses,LANGLEY PARK SCHOOL FOR GIRLS,4000209120,66000.00,
Department for Education,NATIONAL COLLEGE FOR TEACHING AND LEADERSHIP AGENCY,03/06/2015,Grants,Delivery Directorate,Grants to third sector organisations / not for profit organisations and other businesses,MINSTHORPE COMMUNITY COLLEGE,4000209121,57600.00,
Department for Education,NATIONAL COLLEGE FOR TEACHING AND LEADERSHIP AGENCY,03/06/2015,Grants,Operations Directorate,Grants to third sector organisations / not for profit organisations and other businesses,MINSTHORPE COMMUNITY COLLEGE,4000209121,4520.00,
Department for Education,NATIONAL COLLEGE FOR TEACHING AND LEADERSHIP AGENCY,03/06/2015,Grants,Operations Directorate,Grants to third sector organisations / not for profit organisations and other businesses,MINSTHORPE COMMUNITY COLLEGE,4000209121,67440.00,
Department for Education,NATIONAL COLLEGE FOR TEACHING AND LEADERSHIP AGENCY,03/06/2015,Grants,Operations Directorate,Grants to third sector organisations / not for profit organisations and other businesses,UNIVERSITY OF CHICHESTER,4000209122,14563.80,
Department for Education,NATIONAL COLLEGE FOR TEACHING AND LEADERSHIP AGENCY,03/06/2015,Grants,Operations Directorate,Grants to third sector organisations / not for profit organisations and other businesses,UNIVERSITY OF CHICHESTER,4000209122,127980.00,
Department for Education,NATIONAL COLLEGE FOR TEACHING AND LEADERSHIP AGENCY,03/06/2015,Grants,Delivery Directorate,Grants to third sector organisations / not for profit organisations and other businesses,UNIVERSITY OF CHICHESTER,4000209122,21166.20,
Department for Education,NATIONAL COLLEGE FOR TEACHING AND LEADERSHIP AGENCY,03/06/2015,Grants,Delivery Directorate,Grants to third sector organisations / not for profit organisations and other businesses,MANCHESTER METROPOLITAN UNIVERSITY,4000209128,4800.06,
Department for Education,NATIONAL COLLEGE FOR TEACHING AND LEADERSHIP AGENCY,03/06/2015,Grants,Operations Directorate,Grants to third sector organisations / not for profit organisations and other businesses,MANCHESTER METROPOLITAN UNIVERSITY,4000209128,96665.40,
Department for Education,NATIONAL COLLEGE FOR TEACHING AND LEADERSHIP AGENCY,03/06/2015,Grants,Operations Directorate,Grants to third sector organisations / not for profit organisations and other businesses,MANCHESTER METROPOLITAN UNIVERSITY,4000209128,488460.00,
Department for Education,NATIONAL COLLEGE FOR TEACHING AND LEADERSHIP AGENCY,03/06/2015,Grants,Delivery Directorate,Grants to third sector organisations / not for profit organisations and other businesses,MANCHESTER METROPOLITAN UNIVERSITY,4000209128,48610.00,
Department for Education,NATIONAL COLLEGE FOR TEACHING AND LEADERSHIP AGENCY,03/06/2015,Grants,Operations Directorate,Grants to third sector organisations / not for profit organisations and other businesses,DONCASTER MBC,4000209137,36630.00,
Department for Education,NATIONAL COLLEGE FOR TEACHING AND LEADERSHIP AGENCY,03/06/2015,Grants,Delivery Directorate,Grants to third sector organisations / not for profit organisations and other businesses,DONCASTER MBC,4000209137,15120.00,
Department for Education,NATIONAL COLLEGE FOR TEACHING AND LEADERSHIP AGENCY,03/06/2015,Grants,Operations Directorate,Grants to third sector organisations / not for profit organisations and other businesses,THE ACADEMY AT SHOTTON HALL,4000209141,35730.00,
Department for Education,NATIONAL COLLEGE FOR TEACHING AND LEADERSHIP AGENCY,03/06/2015,Grants,Operations Directorate,Grants to third sector organisations / not for profit organisations and other businesses,THE ROYAL BOROUGH OF WINDSOR & MAIDENHEAD,4000209149,188013.50,
Department for Education,NATIONAL COLLEGE FOR TEACHING AND LEADERSHIP AGENCY,03/06/2015,Grants,Operations Directorate,Grants to third sector organisations / not for profit organisations and other businesses,DEVON COUNTY COUNCIL,4000209150,34039.00,
Department for Education,NATIONAL COLLEGE FOR TEACHING AND LEADERSHIP AGENCY,03/06/2015,Grants,Operations Directorate,Grants to third sector organisations / not for profit organisations and other businesses,ESSEX COUNTY COUNCIL,4000209151,40120.00,
Department for Education,NATIONAL COLLEGE FOR TEACHING AND LEADERSHIP AGENCY,03/06/2015,Grants,Operations Directorate,Grants to third sector organisations / not for profit organisations and other businesses,GOLDSMITH COLLEGE,4000209155,142425.00,
Department for Education,NATIONAL COLLEGE FOR TEACHING AND LEADERSHIP AGENCY,03/06/2015,Grants,Delivery Directorate,Grants to third sector organisations / not for profit organisations and other businesses,GRAND UNION TRAINING PARTNERSHIP,4000209156,1560.00,
Department for Education,NATIONAL COLLEGE FOR TEACHING AND LEADERSHIP AGENCY,03/06/2015,Grants,Operations Directorate,Grants to third sector organisations / not for profit organisations and other businesses,GRAND UNION TRAINING PARTNERSHIP,4000209156,28620.00,
Department for Education,NATIONAL COLLEGE FOR TEACHING AND LEADERSHIP AGENCY,03/06/2015,Grants,Operations Directorate,Grants to third sector organisations / not for profit organisations and other businesses,KENT & MEDWAY TRAINING,4000209160,39870.00,
Department for Education,NATIONAL COLLEGE FOR TEACHING AND LEADERSHIP AGENCY,03/06/2015,Grants,Delivery Directorate,Grants to third sector organisations / not for profit organisations and other businesses,HIBERNIA COLLEGE UK,4000209161,245702.04,
Department for Education,NATIONAL COLLEGE FOR TEACHING AND LEADERSHIP AGENCY,03/06/2015,Grants,Operations Directorate,Grants to third sector organisations / not for profit organisations and other businesses,HIBERNIA COLLEGE UK,4000209161,91360.00,
Department for Education,NATIONAL COLLEGE FOR TEACHING AND LEADERSHIP AGENCY,03/06/2015,Grants,Operations Directorate,Grants to third sector organisations / not for profit organisations and other businesses,HIBERNIA COLLEGE UK,4000209161,247830.00,
Department for Education,DEPARTMENT FOR EDUCATION,08/06/2015,Professional Services Other,Academies Delivery Group,"Fees / expenses of professionals, for example to implement advice or changes",VEREDUS C/O CAPITA RESOURCING LTD,4000209734,41953.50,
Department for Education,NATIONAL COLLEGE FOR TEACHING AND LEADERSHIP AGENCY,03/06/2015,Grants,Operations Directorate,Grants to third sector organisations / not for profit organisations and other businesses,UNIVERSITY OF EXETER,4000209168,124917.00,
Department for Education,NATIONAL COLLEGE FOR TEACHING AND LEADERSHIP AGENCY,03/06/2015,Grants,Delivery Directorate,Grants to third sector organisations / not for profit organisations and other businesses,EDGE HILL UNIVERSITY,4000209169,25433.33,
Department for Education,NATIONAL COLLEGE FOR TEACHING AND LEADERSHIP AGENCY,03/06/2015,Grants,Operations Directorate,Grants to third sector organisations / not for profit organisations and other businesses,EDGE HILL UNIVERSITY,4000209169,7229.25,
Department for Education,NATIONAL COLLEGE FOR TEACHING AND LEADERSHIP AGENCY,03/06/2015,Grants,Operations Directorate,Grants to third sector organisations / not for profit organisations and other businesses,EDGE HILL UNIVERSITY,4000209169,498240.00,
Department for Education,NATIONAL COLLEGE FOR TEACHING AND LEADERSHIP AGENCY,03/06/2015,Grants,Operations Directorate,Grants to third sector organisations / not for profit organisations and other businesses,EDGE HILL UNIVERSITY,4000209169,10335.00,
Department for Education,NATIONAL COLLEGE FOR TEACHING AND LEADERSHIP AGENCY,03/06/2015,Grants,Operations Directorate,Grants to third sector organisations / not for profit organisations and other businesses,EDGE HILL UNIVERSITY,4000209169,27360.00,
Department for Education,NATIONAL COLLEGE FOR TEACHING AND LEADERSHIP AGENCY,03/06/2015,Grants,Delivery Directorate,Grants to third sector organisations / not for profit organisations and other businesses,EDGE HILL UNIVERSITY,4000209169,97980.00,
Department for Education,NATIONAL COLLEGE FOR TEACHING AND LEADERSHIP AGENCY,03/06/2015,Grants,Delivery Directorate,Grants to third sector organisations / not for profit organisations and other businesses,UNIVERSITY OF CUMBRIA,4000209184,13160.00,
Department for Education,NATIONAL COLLEGE FOR TEACHING AND LEADERSHIP AGENCY,03/06/2015,Grants,Operations Directorate,Grants to third sector organisations / not for profit organisations and other businesses,UNIVERSITY OF CUMBRIA,4000209184,6701.40,
Department for Education,NATIONAL COLLEGE FOR TEACHING AND LEADERSHIP AGENCY,03/06/2015,Grants,Operations Directorate,Grants to third sector organisations / not for profit organisations and other businesses,UNIVERSITY OF CUMBRIA,4000209184,371409.00,
Department for Education,NATIONAL COLLEGE FOR TEACHING AND LEADERSHIP AGENCY,03/06/2015,Grants,Delivery Directorate,Grants to third sector organisations / not for profit organisations and other businesses,UNIVERSITY OF CHESTER,4000209186,4800.00,
Department for Education,NATIONAL COLLEGE FOR TEACHING AND LEADERSHIP AGENCY,03/06/2015,Grants,Operations Directorate,Grants to third sector organisations / not for profit organisations and other businesses,UNIVERSITY OF CHESTER,4000209186,32634.90,
Department for Education,NATIONAL COLLEGE FOR TEACHING AND LEADERSHIP AGENCY,03/06/2015,Grants,Operations Directorate,Grants to third sector organisations / not for profit organisations and other businesses,UNIVERSITY OF CHESTER,4000209186,185990.00,
Department for Education,NATIONAL COLLEGE FOR TEACHING AND LEADERSHIP AGENCY,03/06/2015,Grants,Operations Directorate,Grants to third sector organisations / not for profit organisations and other businesses,UNIVERSITY OF CHESTER,4000209186,5500.00,
Department for Education,NATIONAL COLLEGE FOR TEACHING AND LEADERSHIP AGENCY,03/06/2015,Grants,Delivery Directorate,Grants to third sector organisations / not for profit organisations and other businesses,UNIVERSITY OF ROEHAMPTON,4000209187,10400.00,
Department for Education,NATIONAL COLLEGE FOR TEACHING AND LEADERSHIP AGENCY,03/06/2015,Grants,Operations Directorate,Grants to third sector organisations / not for profit organisations and other businesses,UNIVERSITY OF ROEHAMPTON,4000209187,193290.00,
Department for Education,NATIONAL COLLEGE FOR TEACHING AND LEADERSHIP AGENCY,03/06/2015,Grants,Operations Directorate,Grants to third sector organisations / not for profit organisations and other businesses,UNIVERSITY OF LEICESTER,4000209194,272014.50,
Department for Education,NATIONAL COLLEGE FOR TEACHING AND LEADERSHIP AGENCY,03/06/2015,Grants,Operations Directorate,Grants to third sector organisations / not for profit organisations and other businesses,THE UNIVERSITY OF MANCHESTER,4000209195,313260.00,
Department for Education,NATIONAL COLLEGE FOR TEACHING AND LEADERSHIP AGENCY,03/06/2015,Grants,Operations Directorate,Grants to third sector organisations / not for profit organisations and other businesses,SUFFOLK COUNTY COUNCIL,4000209196,65424.74,
Department for Education,NATIONAL COLLEGE FOR TEACHING AND LEADERSHIP AGENCY,03/06/2015,Grants,Operations Directorate,Grants to third sector organisations / not for profit organisations and other businesses,UNIVERSITY OF CAMBRIDGE,4000209198,284400.00,
Department for Education,NATIONAL COLLEGE FOR TEACHING AND LEADERSHIP AGENCY,03/06/2015,Grants,Operations Directorate,Grants to third sector organisations / not for profit organisations and other businesses,UNIVERSITY OF BOLTON,4000209199,53640.00,
Department for Education,NATIONAL COLLEGE FOR TEACHING AND LEADERSHIP AGENCY,03/06/2015,Grants,Operations Directorate,Grants to third sector organisations / not for profit organisations and other businesses,NEWCASTLE COLLEGE GROUP,4000209200,49590.00,
Department for Education,NATIONAL COLLEGE FOR TEACHING AND LEADERSHIP AGENCY,03/06/2015,Grants,Operations Directorate,Grants to third sector organisations / not for profit organisations and other businesses,INSTITUTE OF EDUCATION U.O.L.,4000209211,746797.50,
Department for Education,NATIONAL COLLEGE FOR TEACHING AND LEADERSHIP AGENCY,03/06/2015,Grants,Operations Directorate,Grants to third sector organisations / not for profit organisations and other businesses,INSTITUTE OF EDUCATION U.O.L.,4000209211,43560.00,
Department for Education,NATIONAL COLLEGE FOR TEACHING AND LEADERSHIP AGENCY,03/06/2015,Grants,Delivery Directorate,Grants to third sector organisations / not for profit organisations and other businesses,KING EDWARDS CONSORTIUM,4000209213,2000.00,
Department for Education,NATIONAL COLLEGE FOR TEACHING AND LEADERSHIP AGENCY,03/06/2015,Grants,Operations Directorate,Grants to third sector organisations / not for profit organisations and other businesses,KING EDWARDS CONSORTIUM,4000209213,35710.00,
Department for Education,NATIONAL COLLEGE FOR TEACHING AND LEADERSHIP AGENCY,03/06/2015,Grants,Operations Directorate,Grants to third sector organisations / not for profit organisations and other businesses,KINGSBRIDGE NLC WIGAN,4000209214,42320.00,
Department for Education,NATIONAL COLLEGE FOR TEACHING AND LEADERSHIP AGENCY,03/06/2015,Grants,Operations Directorate,Grants to third sector organisations / not for profit organisations and other businesses,BIRMINGHAM CITY UNIVERSITY,4000209217,169190.00,
Department for Education,NATIONAL COLLEGE FOR TEACHING AND LEADERSHIP AGENCY,03/06/2015,Grants,Operations Directorate,Grants to third sector organisations / not for profit organisations and other businesses,BIRMINGHAM CITY UNIVERSITY,4000209217,5040.00,
Department for Education,NATIONAL COLLEGE FOR TEACHING AND LEADERSHIP AGENCY,03/06/2015,Grants,Delivery Directorate,Grants to third sector organisations / not for profit organisations and other businesses,LIVERPOOL JOHN MOORES UNIVERSITY,4000209218,2506.67,
Department for Education,NATIONAL COLLEGE FOR TEACHING AND LEADERSHIP AGENCY,03/06/2015,Grants,Operations Directorate,Grants to third sector organisations / not for profit organisations and other businesses,LIVERPOOL JOHN MOORES UNIVERSITY,4000209218,17763.30,
Department for Education,NATIONAL COLLEGE FOR TEACHING AND LEADERSHIP AGENCY,03/06/2015,Grants,Operations Directorate,Grants to third sector organisations / not for profit organisations and other businesses,LIVERPOOL JOHN MOORES UNIVERSITY,4000209218,132590.00,
Department for Education,NATIONAL COLLEGE FOR TEACHING AND LEADERSHIP AGENCY,03/06/2015,Grants,Operations Directorate,Grants to third sector organisations / not for profit organisations and other businesses,LIVERPOOL JOHN MOORES UNIVERSITY,4000209218,11460.00,
Department for Education,NATIONAL COLLEGE FOR TEACHING AND LEADERSHIP AGENCY,03/06/2015,Grants,Operations Directorate,Grants to third sector organisations / not for profit organisations and other businesses,ARK SCHOOLS,4000209223,33570.00,
Department for Education,DEPARTMENT FOR EDUCATION,03/06/2015,Grants,Families Group,Grants to third sector organisations / not for profit organisations and other businesses,MORNING LANE ASSOCIATES,4000209229,94441.02,
Department for Education,DEPARTMENT FOR EDUCATION,03/06/2015,Programme costs,Children's Services and Departmental Strategy Safeguarding Group,Funding to deliver policies (excluding consultancy) paid to third parties via a service delivery contract,MORNING LANE ASSOCIATES,4000209229,720.00,
Department for Education,NATIONAL COLLEGE FOR TEACHING AND LEADERSHIP AGENCY,03/06/2015,Grants,Delivery Directorate,Grants to third sector organisations / not for profit organisations and other businesses,CANTERBURY CHRIST CHURCH UNIVERSITY,4000209234,6400.00,
Department for Education,NATIONAL COLLEGE FOR TEACHING AND LEADERSHIP AGENCY,03/06/2015,Grants,Operations Directorate,Grants to third sector organisations / not for profit organisations and other businesses,CANTERBURY CHRIST CHURCH UNIVERSITY,4000209234,216915.00,
Department for Education,NATIONAL COLLEGE FOR TEACHING AND LEADERSHIP AGENCY,03/06/2015,Grants,Operations Directorate,Grants to third sector organisations / not for profit organisations and other businesses,CANTERBURY CHRIST CHURCH UNIVERSITY,4000209234,14130.00,
Department for Education,DEPARTMENT FOR EDUCATION,03/06/2015,Grants,Assessment and Curriculum and General Qualifications Group,Grants to third sector organisations / not for profit organisations and other businesses,THE UNIVERSITY OF WARWICK,4000209250,73546.00,
Department for Education,STANDARDS AND TESTING AGENCY,03/06/2015,Office Solutions,Test Operations Division,Post and courier services,PARCELFORCE WORLDWIDE,4000209252,985321.26,
Department for Education,DEPARTMENT FOR EDUCATION,03/06/2015,Grants,Families Group,Grants to third sector organisations / not for profit organisations and other businesses,RESOLUTIONS CONSULTANCY PTY LTD,4000209257,50131.28,
Department for Education,DEPARTMENT FOR EDUCATION,22/06/2015,Grants,Academies Delivery Group,Capital grants paid to educational establishments,THE CHALLENGER MULTI ACADEMY TRUST,4000210523,80000.00,
Department for Education,NATIONAL COLLEGE FOR TEACHING AND LEADERSHIP AGENCY,03/06/2015,Grants,Operations Directorate,Grants to third sector organisations / not for profit organisations and other businesses,UNIVERSITY OF EAST ANGLIA,4000209271,160470.00,
Department for Education,NATIONAL COLLEGE FOR TEACHING AND LEADERSHIP AGENCY,03/06/2015,Grants,Operations Directorate,Grants to third sector organisations / not for profit organisations and other businesses,KINGS COLLEGE GUILDFORD,4000209272,274073.34,
Department for Education,NATIONAL COLLEGE FOR TEACHING AND LEADERSHIP AGENCY,03/06/2015,Grants,Delivery Directorate,Grants to third sector organisations / not for profit organisations and other businesses,UNIVERSITY OF SUSSEX,4000209274,103814.66,
Department for Education,NATIONAL COLLEGE FOR TEACHING AND LEADERSHIP AGENCY,03/06/2015,Grants,Operations Directorate,Grants to third sector organisations / not for profit organisations and other businesses,UNIVERSITY OF SUSSEX,4000209274,152640.00,
Department for Education,NATIONAL COLLEGE FOR TEACHING AND LEADERSHIP AGENCY,03/06/2015,Grants,Operations Directorate,Grants to third sector organisations / not for profit organisations and other businesses,UNIVERSITY OF SUSSEX,4000209274,151275.00,
Department for Education,NATIONAL COLLEGE FOR TEACHING AND LEADERSHIP AGENCY,03/06/2015,Grants,Operations Directorate,Grants to third sector organisations / not for profit organisations and other businesses,UNIVERSITY OF PLYMOUTH,4000209275,34654.50,
Department for Education,NATIONAL COLLEGE FOR TEACHING AND LEADERSHIP AGENCY,03/06/2015,Grants,Operations Directorate,Grants to third sector organisations / not for profit organisations and other businesses,UNIVERSITY OF PLYMOUTH,4000209275,76340.00,
Department for Education,NATIONAL COLLEGE FOR TEACHING AND LEADERSHIP AGENCY,03/06/2015,Grants,Operations Directorate,Grants to third sector organisations / not for profit organisations and other businesses,YORK ST JOHN UNIVERSITY,4000209281,163617.86,
Department for Education,NATIONAL COLLEGE FOR TEACHING AND LEADERSHIP AGENCY,03/06/2015,Grants,Operations Directorate,Grants to third sector organisations / not for profit organisations and other businesses,UNIVERSITY OF OXFORD,4000209282,148110.00,
Department for Education,NATIONAL COLLEGE FOR TEACHING AND LEADERSHIP AGENCY,03/06/2015,Grants,Operations Directorate,Grants to third sector organisations / not for profit organisations and other businesses,LEEDS BECKETT UNIVERSITY,4000209283,44064.00,
Department for Education,NATIONAL COLLEGE FOR TEACHING AND LEADERSHIP AGENCY,03/06/2015,Grants,Operations Directorate,Grants to third sector organisations / not for profit organisations and other businesses,LEEDS BECKETT UNIVERSITY,4000209283,22950.00,
Department for Education,NATIONAL COLLEGE FOR TEACHING AND LEADERSHIP AGENCY,03/06/2015,Grants,Delivery Directorate,Grants to third sector organisations / not for profit organisations and other businesses,LEEDS BECKETT UNIVERSITY,4000209283,12420.00,
Department for Education,NATIONAL COLLEGE FOR TEACHING AND LEADERSHIP AGENCY,03/06/2015,Grants,Operations Directorate,Grants to third sector organisations / not for profit organisations and other businesses,STAFFORDSHIRE UNIVERSITY,4000209284,68920.00,
Department for Education,NATIONAL COLLEGE FOR TEACHING AND LEADERSHIP AGENCY,03/06/2015,Grants,Operations Directorate,Grants to third sector organisations / not for profit organisations and other businesses,STAFFORDSHIRE UNIVERSITY,4000209284,28650.00,
Department for Education,NATIONAL COLLEGE FOR TEACHING AND LEADERSHIP AGENCY,03/06/2015,Grants,Operations Directorate,Grants to third sector organisations / not for profit organisations and other businesses,STAFFORDSHIRE UNIVERSITY,4000209284,6750.00,
Department for Education,NATIONAL COLLEGE FOR TEACHING AND LEADERSHIP AGENCY,03/06/2015,Grants,Operations Directorate,Grants to third sector organisations / not for profit organisations and other businesses,UNIVERSITY OF DERBY,4000209285,29536.65,
Department for Education,NATIONAL COLLEGE FOR TEACHING AND LEADERSHIP AGENCY,03/06/2015,Grants,Operations Directorate,Grants to third sector organisations / not for profit organisations and other businesses,UNIVERSITY OF DERBY,4000209285,64830.00,
Department for Education,NATIONAL COLLEGE FOR TEACHING AND LEADERSHIP AGENCY,03/06/2015,Grants,Operations Directorate,Grants to third sector organisations / not for profit organisations and other businesses,UNIVERSITY OF DERBY,4000209285,6030.00,
Department for Education,NATIONAL COLLEGE FOR TEACHING AND LEADERSHIP AGENCY,03/06/2015,Grants,Delivery Directorate,Grants to third sector organisations / not for profit organisations and other businesses,UNIVERSITY OF DERBY,4000209285,21039.60,
Department for Education,NATIONAL COLLEGE FOR TEACHING AND LEADERSHIP AGENCY,03/06/2015,Grants,Operations Directorate,Grants to third sector organisations / not for profit organisations and other businesses,NINESTILES SCHOOL,4000209286,48250.00,
Department for Education,NATIONAL COLLEGE FOR TEACHING AND LEADERSHIP AGENCY,03/06/2015,Grants,Delivery Directorate,Grants to third sector organisations / not for profit organisations and other businesses,UNIVERSITY OF EAST LONDON,4000209292,34000.00,
Department for Education,NATIONAL COLLEGE FOR TEACHING AND LEADERSHIP AGENCY,03/06/2015,Grants,Operations Directorate,Grants to third sector organisations / not for profit organisations and other businesses,UNIVERSITY OF EAST LONDON,4000209292,188965.00,
Department for Education,NATIONAL COLLEGE FOR TEACHING AND LEADERSHIP AGENCY,03/06/2015,Grants,Operations Directorate,Grants to third sector organisations / not for profit organisations and other businesses,UNIVERSITY OF EAST LONDON,4000209292,5620.00,
Department for Education,NATIONAL COLLEGE FOR TEACHING AND LEADERSHIP AGENCY,03/06/2015,Grants,Delivery Directorate,Grants to third sector organisations / not for profit organisations and other businesses,UNIVERSITY OF EAST LONDON,4000209292,3360.00,
Department for Education,NATIONAL COLLEGE FOR TEACHING AND LEADERSHIP AGENCY,03/06/2015,Grants,Operations Directorate,Grants to third sector organisations / not for profit organisations and other businesses,UNIVERSITY OF NORTHUMBRIA,4000209296,91140.00,
Department for Education,NATIONAL COLLEGE FOR TEACHING AND LEADERSHIP AGENCY,03/06/2015,Grants,Delivery Directorate,Grants to third sector organisations / not for profit organisations and other businesses,UNIVERSITY OF NORTHUMBRIA,4000209296,15570.00,
Department for Education,NATIONAL COLLEGE FOR TEACHING AND LEADERSHIP AGENCY,03/06/2015,Grants,Operations Directorate,Grants to third sector organisations / not for profit organisations and other businesses,KINGSTON UNIVERSITY,4000209303,146800.00,
Department for Education,NATIONAL COLLEGE FOR TEACHING AND LEADERSHIP AGENCY,03/06/2015,Grants,Delivery Directorate,Grants to third sector organisations / not for profit organisations and other businesses,KINGSTON UNIVERSITY,4000209303,38240.00,
Department for Education,NATIONAL COLLEGE FOR TEACHING AND LEADERSHIP AGENCY,03/06/2015,Grants,Operations Directorate,Grants to third sector organisations / not for profit organisations and other businesses,UNIVERSITY OF NOTTINGHAM,4000209305,153820.00,
Department for Education,NATIONAL COLLEGE FOR TEACHING AND LEADERSHIP AGENCY,03/06/2015,Grants,Operations Directorate,Grants to third sector organisations / not for profit organisations and other businesses,UNIVERSITY OF BRIGHTON,4000209308,87967.80,
Department for Education,NATIONAL COLLEGE FOR TEACHING AND LEADERSHIP AGENCY,03/06/2015,Grants,Operations Directorate,Grants to third sector organisations / not for profit organisations and other businesses,UNIVERSITY OF BRIGHTON,4000209308,167940.00,
Department for Education,NATIONAL COLLEGE FOR TEACHING AND LEADERSHIP AGENCY,03/06/2015,Grants,Operations Directorate,Grants to third sector organisations / not for profit organisations and other businesses,UNIVERSITY OF BRIGHTON,4000209308,2070.00,
Department for Education,NATIONAL COLLEGE FOR TEACHING AND LEADERSHIP AGENCY,03/06/2015,Grants,Delivery Directorate,Grants to third sector organisations / not for profit organisations and other businesses,UNIVERSITY OF BRIGHTON,4000209308,15120.00,
Department for Education,NATIONAL COLLEGE FOR TEACHING AND LEADERSHIP AGENCY,03/06/2015,Grants,Operations Directorate,Grants to third sector organisations / not for profit organisations and other businesses,UNIVERSITY OF HERTFORDSHIRE,4000209309,117467.94,
Department for Education,NATIONAL COLLEGE FOR TEACHING AND LEADERSHIP AGENCY,03/06/2015,Grants,Operations Directorate,Grants to third sector organisations / not for profit organisations and other businesses,UNIVERSITY OF WORCESTER,4000209311,201780.00,
Department for Education,NATIONAL COLLEGE FOR TEACHING AND LEADERSHIP AGENCY,03/06/2015,Grants,Operations Directorate,Grants to third sector organisations / not for profit organisations and other businesses,UNIVERSITY OF WORCESTER,4000209311,3820.00,
Department for Education,NATIONAL COLLEGE FOR TEACHING AND LEADERSHIP AGENCY,03/06/2015,Grants,Delivery Directorate,Grants to third sector organisations / not for profit organisations and other businesses,UNIVERSITY OF WORCESTER,4000209311,16836.20,
Department for Education,NATIONAL COLLEGE FOR TEACHING AND LEADERSHIP AGENCY,03/06/2015,Grants,Delivery Directorate,Grants to third sector organisations / not for profit organisations and other businesses,NOTTINGHAM TRENT UNIVERSITY,4000209312,3200.00,
Department for Education,NATIONAL COLLEGE FOR TEACHING AND LEADERSHIP AGENCY,03/06/2015,Grants,Operations Directorate,Grants to third sector organisations / not for profit organisations and other businesses,NOTTINGHAM TRENT UNIVERSITY,4000209312,32313.60,
Department for Education,NATIONAL COLLEGE FOR TEACHING AND LEADERSHIP AGENCY,03/06/2015,Grants,Operations Directorate,Grants to third sector organisations / not for profit organisations and other businesses,NOTTINGHAM TRENT UNIVERSITY,4000209312,147940.00,
Department for Education,NATIONAL COLLEGE FOR TEACHING AND LEADERSHIP AGENCY,03/06/2015,Grants,Operations Directorate,Grants to third sector organisations / not for profit organisations and other businesses,NOTTINGHAM TRENT UNIVERSITY,4000209312,33830.00,
Department for Education,NATIONAL COLLEGE FOR TEACHING AND LEADERSHIP AGENCY,03/06/2015,Grants,Operations Directorate,Grants to third sector organisations / not for profit organisations and other businesses,NOTTINGHAM TRENT UNIVERSITY,4000209312,2700.00,
Department for Education,NATIONAL COLLEGE FOR TEACHING AND LEADERSHIP AGENCY,03/06/2015,Grants,Operations Directorate,Grants to third sector organisations / not for profit organisations and other businesses,EAST LINCOLNSHIRE DRB,4000209315,27580.00,
Department for Education,NATIONAL COLLEGE FOR TEACHING AND LEADERSHIP AGENCY,03/06/2015,Grants,Operations Directorate,Grants to third sector organisations / not for profit organisations and other businesses,GLOUCESTERSHIRE ITE PARTNERSHIP,4000209317,47070.00,
Department for Education,DEPARTMENT FOR EDUCATION,10/06/2015,Professional Services Other,Property Asset Management Group,"Fees / expenses of professionals, for example to implement advice or changes",METHODS CONSULTING LTD,4000209936,12540.00,
Department for Education,NATIONAL COLLEGE FOR TEACHING AND LEADERSHIP AGENCY,03/06/2015,Grants,Delivery Directorate,Grants to third sector organisations / not for profit organisations and other businesses,SHEFFIELD HALLAM UNIVERSITY,4000209321,4000.00,
Department for Education,NATIONAL COLLEGE FOR TEACHING AND LEADERSHIP AGENCY,03/06/2015,Grants,Operations Directorate,Grants to third sector organisations / not for profit organisations and other businesses,SHEFFIELD HALLAM UNIVERSITY,4000209321,183680.00,
Department for Education,NATIONAL COLLEGE FOR TEACHING AND LEADERSHIP AGENCY,03/06/2015,Grants,Operations Directorate,Grants to third sector organisations / not for profit organisations and other businesses,SHEFFIELD HALLAM UNIVERSITY,4000209321,1890.00,
Department for Education,NATIONAL COLLEGE FOR TEACHING AND LEADERSHIP AGENCY,03/06/2015,Grants,Delivery Directorate,Grants to third sector organisations / not for profit organisations and other businesses,SHEFFIELD HALLAM UNIVERSITY,4000209321,23680.00,
Department for Education,NATIONAL COLLEGE FOR TEACHING AND LEADERSHIP AGENCY,03/06/2015,Grants,Delivery Directorate,Grants to third sector organisations / not for profit organisations and other businesses,BATH SPA UNIVERSITY,4000209325,12300.00,
Department for Education,NATIONAL COLLEGE FOR TEACHING AND LEADERSHIP AGENCY,03/06/2015,Grants,Operations Directorate,Grants to third sector organisations / not for profit organisations and other businesses,BATH SPA UNIVERSITY,4000209325,252360.00,
Department for Education,NATIONAL COLLEGE FOR TEACHING AND LEADERSHIP AGENCY,03/06/2015,Grants,Delivery Directorate,Grants to third sector organisations / not for profit organisations and other businesses,BATH SPA UNIVERSITY,4000209325,11500.00,
Department for Education,NATIONAL COLLEGE FOR TEACHING AND LEADERSHIP AGENCY,03/06/2015,Grants,Operations Directorate,Grants to third sector organisations / not for profit organisations and other businesses,LONDON METROPOLITAN UNIVERSITY,4000209326,92880.00,
Department for Education,NATIONAL COLLEGE FOR TEACHING AND LEADERSHIP AGENCY,03/06/2015,Grants,Delivery Directorate,Grants to third sector organisations / not for profit organisations and other businesses,LONDON METROPOLITAN UNIVERSITY,4000209326,24080.00,
Department for Education,DEPARTMENT FOR EDUCATION,03/06/2015,ICT,Children's Services and Departmental Strategy Directorate Support,Telecoms facilities and services - telecom rentals,BT,4000209328,113.87,
Department for Education,DEPARTMENT FOR EDUCATION,03/06/2015,ICT,Children's Services and Departmental Strategy Directorate Support,Telecoms facilities and services - telecom rentals,BT,4000209328,307.46,
Department for Education,DEPARTMENT FOR EDUCATION,03/06/2015,ICT,Children in Care Division,Telecoms facilities and services - telecom rentals,BT,4000209328,139.07,
Department for Education,DEPARTMENT FOR EDUCATION,03/06/2015,ICT,Children in Care Division,Telecoms facilities and services - telecom rentals,BT,4000209328,2302.19,
Department for Education,DEPARTMENT FOR EDUCATION,03/06/2015,ICT,Children in Care Division,Telecoms facilities and services - telecom rentals,BT,4000209328,45.47,
Department for Education,DEPARTMENT FOR EDUCATION,03/06/2015,ICT,"Childcare, Special Educational Needs and Children's Strategy Group",Telecoms facilities and services - telecom rentals,BT,4000209328,124.08,
Department for Education,DEPARTMENT FOR EDUCATION,03/06/2015,ICT,Strategic Analysis and Research and Policy Impact Group,Telecoms facilities and services - telecom rentals,BT,4000209328,66.77,
Department for Education,DEPARTMENT FOR EDUCATION,03/06/2015,ICT,Children in Care Division,Telecoms facilities and services - telecom rentals,BT,4000209328,341.56,
Department for Education,DEPARTMENT FOR EDUCATION,03/06/2015,ICT,"Childcare, Special Educational Needs and Children's Strategy Group",Telecoms facilities and services - telecom rentals,BT,4000209328,1248.30,
Department for Education,DEPARTMENT FOR EDUCATION,03/06/2015,ICT,Information Technology Group,Telecoms facilities and services - telecom rentals,BT,4000209328,6084.24,
Department for Education,DEPARTMENT FOR EDUCATION,03/06/2015,ICT,Finance and Commercial Group,Telecoms facilities and services - telecom rentals,BT,4000209328,199.77,
Department for Education,DEPARTMENT FOR EDUCATION,03/06/2015,ICT,Finance and Commercial Group,Telecoms facilities and services - telecom rentals,BT,4000209328,1541.89,
Department for Education,DEPARTMENT FOR EDUCATION,03/06/2015,ICT,Property Asset Management Group,Telecoms facilities and services - telecom rentals,BT,4000209328,158.40,
Department for Education,DEPARTMENT FOR EDUCATION,03/06/2015,ICT,Property Asset Management Group,Telecoms facilities and services - telecom rentals,BT,4000209328,1139.16,
Department for Education,DEPARTMENT FOR EDUCATION,03/06/2015,ICT,Strategic Analysis and Research and Policy Impact Group,Telecoms facilities and services - telecom rentals,BT,4000209328,171.30,
Department for Education,DEPARTMENT FOR EDUCATION,03/06/2015,ICT,"Strategy, Performance and Implementation Group",Telecoms facilities and services - telecom rentals,BT,4000209328,52.03,
Department for Education,DEPARTMENT FOR EDUCATION,03/06/2015,ICT,"Strategy, Performance and Implementation Group",Telecoms facilities and services - telecom rentals,BT,4000209328,40.36,
Department for Education,DEPARTMENT FOR EDUCATION,03/06/2015,ICT,Finance and Commercial Group,Telecoms facilities and services - telecom rentals,BT,4000209328,135.47,
Department for Education,DEPARTMENT FOR EDUCATION,03/06/2015,ICT,Finance and Commercial Group,Telecoms facilities and services - telecom rentals,BT,4000209328,3963.86,
Department for Education,DEPARTMENT FOR EDUCATION,03/06/2015,ICT,Human Resources Group,Telecoms facilities and services - telecom rentals,BT,4000209328,135.47,
Department for Education,DEPARTMENT FOR EDUCATION,03/06/2015,ICT,Human Resources Group,Telecoms facilities and services - telecom rentals,BT,4000209328,2294.81,
Department for Education,DEPARTMENT FOR EDUCATION,03/06/2015,ICT,Human Resources Group,Telecoms facilities and services - telecom rentals,BT,4000209328,433.34,
Department for Education,DEPARTMENT FOR EDUCATION,03/06/2015,ICT,Human Resources Group,Telecoms facilities and services - telecom rentals,BT,4000209328,171.18,
Department for Education,DEPARTMENT FOR EDUCATION,03/06/2015,ICT,Human Resources Group,Telecoms facilities and services - telecom rentals,BT,4000209328,77.23,
Department for Education,DEPARTMENT FOR EDUCATION,03/06/2015,ICT,Information Technology Group,Telecoms facilities and services - telecom rentals,BT,4000209328,29860.41,
Department for Education,DEPARTMENT FOR EDUCATION,03/06/2015,ICT,Information Technology Group,Telecoms facilities and services - telecom rentals,BT,4000209328,1252.41,
Department for Education,DEPARTMENT FOR EDUCATION,03/06/2015,ICT,Information Technology Group,Telecoms facilities and services - telecom rentals,BT,4000209328,2130.00,
Department for Education,DEPARTMENT FOR EDUCATION,03/06/2015,ICT,Property Asset Management Group,Telecoms facilities and services - telecom rentals,BT,4000209328,817.52,
Department for Education,DEPARTMENT FOR EDUCATION,03/06/2015,ICT,Property Asset Management Group,Telecoms facilities and services - telecom rentals,BT,4000209328,52.94,
Department for Education,DEPARTMENT FOR EDUCATION,03/06/2015,ICT,Property Asset Management Group,Telecoms facilities and services - telecom rentals,BT,4000209328,647.79,
Department for Education,DEPARTMENT FOR EDUCATION,03/06/2015,ICT,Human Resources Group,Telecoms facilities and services - telecom rentals,BT,4000209328,758.59,
Department for Education,DEPARTMENT FOR EDUCATION,03/06/2015,ICT,Free School Group,Telecoms facilities and services - telecom rentals,BT,4000209328,1244.77,
Department for Education,DEPARTMENT FOR EDUCATION,03/06/2015,ICT,Education Standards Directorate,Telecoms facilities and services - telecom rentals,BT,4000209328,419.52,
Department for Education,DEPARTMENT FOR EDUCATION,03/06/2015,ICT,System Reform Group,Telecoms facilities and services - telecom rentals,BT,4000209328,331.09,
Department for Education,DEPARTMENT FOR EDUCATION,03/06/2015,ICT,System Reform Group,Telecoms facilities and services - telecom rentals,BT,4000209328,732.86,
Department for Education,DEPARTMENT FOR EDUCATION,03/06/2015,ICT,System Reform Group,Telecoms facilities and services - telecom rentals,BT,4000209328,209.90,
Department for Education,DEPARTMENT FOR EDUCATION,03/06/2015,ICT,Education Funding Group,Telecoms facilities and services - telecom rentals,BT,4000209328,111.59,
Department for Education,DEPARTMENT FOR EDUCATION,03/06/2015,ICT,Education Funding Group,Telecoms facilities and services - telecom rentals,BT,4000209328,187.51,
Department for Education,DEPARTMENT FOR EDUCATION,03/06/2015,ICT,Assessment and Curriculum and General Qualifications Group,Telecoms facilities and services - telecom rentals,BT,4000209328,855.26,
Department for Education,DEPARTMENT FOR EDUCATION,03/06/2015,ICT,School Standards Group,Telecoms facilities and services - telecom rentals,BT,4000209328,53.66,
Department for Education,DEPARTMENT FOR EDUCATION,03/06/2015,ICT,Systems and Accountability Group,Telecoms facilities and services - telecom rentals,BT,4000209328,1471.73,
Department for Education,DEPARTMENT FOR EDUCATION,03/06/2015,ICT,School Standards Group,Telecoms facilities and services - telecom rentals,BT,4000209328,76.90,
Department for Education,DEPARTMENT FOR EDUCATION,03/06/2015,ICT,Infrastructure and Funding Directorate Support,Telecoms facilities and services - telecom rentals,BT,4000209328,24.19,
Department for Education,DEPARTMENT FOR EDUCATION,03/06/2015,ICT,Education Funding Group,Telecoms facilities and services - telecom rentals,BT,4000209328,199.73,
Department for Education,DEPARTMENT FOR EDUCATION,03/06/2015,ICT,Due Diligence and Counter Extremism Group,Telecoms facilities and services - telecom rentals,BT,4000209328,35.57,
Department for Education,DEPARTMENT FOR EDUCATION,03/06/2015,ICT,Closing the Gap Group,Telecoms facilities and services - telecom rentals,BT,4000209328,200.74,
Department for Education,DEPARTMENT FOR EDUCATION,03/06/2015,ICT,Closing the Gap Group,Telecoms facilities and services - telecom rentals,BT,4000209328,1060.12,
Department for Education,DEPARTMENT FOR EDUCATION,03/06/2015,ICT,Teachers and Teaching Group,Telecoms facilities and services - telecom rentals,BT,4000209328,90.94,
Department for Education,DEPARTMENT FOR EDUCATION,03/06/2015,ICT,Teachers and Teaching Group,Telecoms facilities and services - telecom rentals,BT,4000209328,928.03,
Department for Education,DEPARTMENT FOR EDUCATION,03/06/2015,ICT,Academies Delivery Group,Telecoms facilities and services - telecom rentals,BT,4000209328,435.70,
Department for Education,DEPARTMENT FOR EDUCATION,03/06/2015,ICT,Academies Delivery Group,Telecoms facilities and services - telecom rentals,BT,4000209328,873.79,
Department for Education,DEPARTMENT FOR EDUCATION,03/06/2015,ICT,Academies Delivery Group,Telecoms facilities and services - telecom rentals,BT,4000209328,45.47,
Department for Education,DEPARTMENT FOR EDUCATION,03/06/2015,ICT,Academies Delivery Group,Telecoms facilities and services - telecom rentals,BT,4000209328,823.16,
Department for Education,DEPARTMENT FOR EDUCATION,03/06/2015,ICT,Academies Delivery Group,Telecoms facilities and services - telecom rentals,BT,4000209328,826.75,
Department for Education,DEPARTMENT FOR EDUCATION,03/06/2015,ICT,Academies Delivery Group,Telecoms facilities and services - telecom rentals,BT,4000209328,347.09,
Department for Education,DEPARTMENT FOR EDUCATION,03/06/2015,ICT,Regional School Commissioners Group,Telecoms facilities and services - telecom rentals,BT,4000209328,243.31,
Department for Education,DEPARTMENT FOR EDUCATION,03/06/2015,ICT,Regional School Commissioners Group,Telecoms facilities and services - telecom rentals,BT,4000209328,100.80,
Department for Education,DEPARTMENT FOR EDUCATION,03/06/2015,ICT,Regional School Commissioners Group,Telecoms facilities and services - telecom rentals,BT,4000209328,186.05,
Department for Education,DEPARTMENT FOR EDUCATION,03/06/2015,ICT,Regional School Commissioners Group,Telecoms facilities and services - telecom rentals,BT,4000209328,235.73,
Department for Education,DEPARTMENT FOR EDUCATION,03/06/2015,ICT,Regional School Commissioners Group,Telecoms facilities and services - telecom rentals,BT,4000209328,66.72,
Department for Education,DEPARTMENT FOR EDUCATION,03/06/2015,ICT,Regional School Commissioners Group,Telecoms facilities and services - telecom rentals,BT,4000209328,7.82,
Department for Education,DEPARTMENT FOR EDUCATION,03/06/2015,ICT,Regional School Commissioners Group,Telecoms facilities and services - telecom rentals,BT,4000209328,350.83,
Department for Education,DEPARTMENT FOR EDUCATION,03/06/2015,ICT,Regional School Commissioners Group,Telecoms facilities and services - telecom rentals,BT,4000209328,374.54,
Department for Education,DEPARTMENT FOR EDUCATION,03/06/2015,ICT,Private Office,Telecoms facilities and services - telecom rentals,BT,4000209328,126.86,
Department for Education,DEPARTMENT FOR EDUCATION,03/06/2015,ICT,Private Office,Telecoms facilities and services - telecom rentals,BT,4000209328,601.64,
Department for Education,DEPARTMENT FOR EDUCATION,03/06/2015,ICT,Finance and Commercial Group,Telecoms facilities and services - telecom rentals,BT,4000209328,222.72,
Department for Education,DEPARTMENT FOR EDUCATION,03/06/2015,ICT,Communications Group,Telecoms facilities and services - telecom rentals,BT,4000209328,169.87,
Department for Education,DEPARTMENT FOR EDUCATION,03/06/2015,ICT,Public Communications Group,Telecoms facilities and services - telecom rentals,BT,4000209328,1132.22,
Department for Education,DEPARTMENT FOR EDUCATION,03/06/2015,ICT,Communications Group,Telecoms facilities and services - telecom rentals,BT,4000209328,1377.32,
Department for Education,DEPARTMENT FOR EDUCATION,03/06/2015,ICT,Communications Group,Telecoms facilities and services - telecom rentals,BT,4000209328,0.24,
Department for Education,DEPARTMENT FOR EDUCATION,03/06/2015,ICT,Communications Group,Telecoms facilities and services - telecom rentals,BT,4000209328,90.94,
Department for Education,STANDARDS AND TESTING AGENCY,03/06/2015,ICT,Standards and Testing Agency Admin,Telecoms facilities and services - telecom rentals,BT,4000209328,4079.92,
Department for Education,STANDARDS AND TESTING AGENCY,03/06/2015,ICT,Test Operations Division,Telecoms facilities and services - telecom rentals,BT,4000209328,166.18,
Department for Education,STANDARDS AND TESTING AGENCY,03/06/2015,ICT,Test Development Division,Telecoms facilities and services - telecom rentals,BT,4000209328,24.72,
Department for Education,STANDARDS AND TESTING AGENCY,03/06/2015,ICT,Test Development Division,Telecoms facilities and services - telecom rentals,BT,4000209328,404.09,
Department for Education,NATIONAL COLLEGE FOR TEACHING AND LEADERSHIP AGENCY,03/06/2015,ICT,Operations Directorate,Telecoms facilities and services - telecom rentals,BT,4000209328,638.96,
Department for Education,NATIONAL COLLEGE FOR TEACHING AND LEADERSHIP AGENCY,03/06/2015,ICT,Operations Directorate,Telecoms facilities and services - telecom rentals,BT,4000209328,13771.45,
Department for Education,NATIONAL COLLEGE FOR TEACHING AND LEADERSHIP AGENCY,03/06/2015,ICT,Delivery Directorate,Telecoms facilities and services - telecom rentals,BT,4000209328,613.85,
Department for Education,NATIONAL COLLEGE FOR TEACHING AND LEADERSHIP AGENCY,03/06/2015,ICT,Delivery Directorate,Telecoms facilities and services - telecom rentals,BT,4000209328,6208.93,
Department for Education,NATIONAL COLLEGE FOR TEACHING AND LEADERSHIP AGENCY,03/06/2015,ICT,Operations Directorate,Telecoms facilities and services - telecom rentals,BT,4000209328,10460.27,
Department for Education,NATIONAL COLLEGE FOR TEACHING AND LEADERSHIP AGENCY,03/06/2015,ICT,Operations Directorate,Telecoms facilities and services - telecom rentals,BT,4000209328,6.48,
Department for Education,EDUCATION FUNDING AGENCY,03/06/2015,ICT,Education Funding Agency Admin,Telecoms facilities and services - telecom rentals,BT,4000209328,2818.64,
Department for Education,EDUCATION FUNDING AGENCY,03/06/2015,ICT,Academies Group,Telecoms facilities and services - telecom rentals,BT,4000209328,7530.95,
Department for Education,EDUCATION FUNDING AGENCY,03/06/2015,ICT,Capital Group,Telecoms facilities and services - telecom rentals,BT,4000209328,8050.96,
Department for Education,EDUCATION FUNDING AGENCY,03/06/2015,ICT,School Funding Division,Telecoms facilities and services - telecom rentals,BT,4000209328,1492.28,
Department for Education,EDUCATION FUNDING AGENCY,03/06/2015,ICT,Education Funding Agency Admin,Telecoms facilities and services - telecom rentals,BT,4000209328,304.11,
Department for Education,EDUCATION FUNDING AGENCY,03/06/2015,ICT,Education Funding Agency Admin,Telecoms facilities and services - telecom rentals,BT,4000209328,11460.14,
Department for Education,EDUCATION FUNDING AGENCY,03/06/2015,ICT,Young People Group,Telecoms facilities and services - telecom rentals,BT,4000209328,6602.31,
Department for Education,EDUCATION FUNDING AGENCY,03/06/2015,ICT,Capital Group,Telecoms facilities and services - telecom rentals,BT,4000209328,10.70,
Department for Education,NATIONAL COLLEGE FOR TEACHING AND LEADERSHIP AGENCY,03/06/2015,Grants,Operations Directorate,Grants to third sector organisations / not for profit organisations and other businesses,UNIVERSITY OF BRISTOL,4000209330,132170.00,
Department for Education,NATIONAL COLLEGE FOR TEACHING AND LEADERSHIP AGENCY,03/06/2015,Grants,Delivery Directorate,Grants to third sector organisations / not for profit organisations and other businesses,UNIVERSITY OF HULL,4000209331,16275.00,
Department for Education,NATIONAL COLLEGE FOR TEACHING AND LEADERSHIP AGENCY,03/06/2015,Grants,Operations Directorate,Grants to third sector organisations / not for profit organisations and other businesses,UNIVERSITY OF HULL,4000209331,136040.00,
Department for Education,NATIONAL COLLEGE FOR TEACHING AND LEADERSHIP AGENCY,03/06/2015,Grants,Operations Directorate,Grants to third sector organisations / not for profit organisations and other businesses,UNIVERSITY OF HULL,4000209331,3200.00,
Department for Education,NATIONAL COLLEGE FOR TEACHING AND LEADERSHIP AGENCY,03/06/2015,Grants,Delivery Directorate,Grants to third sector organisations / not for profit organisations and other businesses,UNIVERSITY OF HULL,4000209331,5600.00,
Department for Education,NATIONAL COLLEGE FOR TEACHING AND LEADERSHIP AGENCY,03/06/2015,Grants,Operations Directorate,Grants to third sector organisations / not for profit organisations and other businesses,UNIVERSITY OF HUDDERSFIELD,4000209334,71360.00,
Department for Education,NATIONAL COLLEGE FOR TEACHING AND LEADERSHIP AGENCY,03/06/2015,Grants,Operations Directorate,Grants to third sector organisations / not for profit organisations and other businesses,UNIVERSITY OF HUDDERSFIELD,4000209334,9360.00,
Department for Education,NATIONAL COLLEGE FOR TEACHING AND LEADERSHIP AGENCY,03/06/2015,Grants,Delivery Directorate,Grants to third sector organisations / not for profit organisations and other businesses,UNIVERSITY OF HUDDERSFIELD,4000209334,8326.20,
Department for Education,NATIONAL COLLEGE FOR TEACHING AND LEADERSHIP AGENCY,03/06/2015,Grants,Operations Directorate,Grants to third sector organisations / not for profit organisations and other businesses,THE UNIVERSITY OF LEEDS,4000209335,176200.00,
Department for Education,NATIONAL COLLEGE FOR TEACHING AND LEADERSHIP AGENCY,03/06/2015,Grants,Operations Directorate,Grants to third sector organisations / not for profit organisations and other businesses,BISHOP GROSSETESTE COLLEGE,4000209339,109155.00,
Department for Education,NATIONAL COLLEGE FOR TEACHING AND LEADERSHIP AGENCY,03/06/2015,Grants,Delivery Directorate,Grants to third sector organisations / not for profit organisations and other businesses,BISHOP GROSSETESTE COLLEGE,4000209339,10570.00,
Department for Education,NATIONAL COLLEGE FOR TEACHING AND LEADERSHIP AGENCY,03/06/2015,Grants,Operations Directorate,Grants to third sector organisations / not for profit organisations and other businesses,THE COLLEGE OF ST MARK & ST JOHN,4000209340,17670.00,
Department for Education,NATIONAL COLLEGE FOR TEACHING AND LEADERSHIP AGENCY,03/06/2015,Grants,Operations Directorate,Grants to third sector organisations / not for profit organisations and other businesses,THE COLLEGE OF ST MARK & ST JOHN,4000209340,36530.00,
Department for Education,NATIONAL COLLEGE FOR TEACHING AND LEADERSHIP AGENCY,11/06/2015,Professional Services Other,Delivery Directorate,"Fees / expenses of professionals, for example to implement advice or changes",MM TELEPERFORMANCE,4000210034,28554.08,
Department for Education,NATIONAL COLLEGE FOR TEACHING AND LEADERSHIP AGENCY,03/06/2015,Grants,Operations Directorate,Grants to third sector organisations / not for profit organisations and other businesses,BOURNEMOUTH POOLE & DORSET EAST SECONDARY,4000209347,33300.00,
Department for Education,NATIONAL COLLEGE FOR TEACHING AND LEADERSHIP AGENCY,03/06/2015,Grants,Operations Directorate,Grants to third sector organisations / not for profit organisations and other businesses,UNIVERSITY OF NORTHAMPTON,4000209348,27050.00,
Department for Education,NATIONAL COLLEGE FOR TEACHING AND LEADERSHIP AGENCY,03/06/2015,Grants,Delivery Directorate,Grants to third sector organisations / not for profit organisations and other businesses,UNIVERSITY OF NORTHAMPTON,4000209348,47379.60,
Department for Education,NATIONAL COLLEGE FOR TEACHING AND LEADERSHIP AGENCY,03/06/2015,Grants,Delivery Directorate,Grants to third sector organisations / not for profit organisations and other businesses,ST MARYS UNIVERSITY COLLEGE,4000209349,17733.37,
Department for Education,NATIONAL COLLEGE FOR TEACHING AND LEADERSHIP AGENCY,03/06/2015,Grants,Operations Directorate,Grants to third sector organisations / not for profit organisations and other businesses,ST MARYS UNIVERSITY COLLEGE,4000209349,321630.00,
Department for Education,NATIONAL COLLEGE FOR TEACHING AND LEADERSHIP AGENCY,03/06/2015,Grants,Operations Directorate,Grants to third sector organisations / not for profit organisations and other businesses,ST MARYS UNIVERSITY COLLEGE,4000209349,9550.00,
Department for Education,NATIONAL COLLEGE FOR TEACHING AND LEADERSHIP AGENCY,03/06/2015,Grants,Operations Directorate,Grants to third sector organisations / not for profit organisations and other businesses,BRUNEL UNIVERSITY,4000209353,104836.81,
Department for Education,NATIONAL COLLEGE FOR TEACHING AND LEADERSHIP AGENCY,03/06/2015,Grants,Operations Directorate,Grants to third sector organisations / not for profit organisations and other businesses,UNIVERSITY OF THE WEST OF ENGLAND,4000209354,172880.00,
Department for Education,NATIONAL COLLEGE FOR TEACHING AND LEADERSHIP AGENCY,03/06/2015,Grants,Operations Directorate,Grants to third sector organisations / not for profit organisations and other businesses,UNIVERSITY OF THE WEST OF ENGLAND,4000209354,3060.00,
Department for Education,NATIONAL COLLEGE FOR TEACHING AND LEADERSHIP AGENCY,03/06/2015,Grants,Delivery Directorate,Grants to third sector organisations / not for profit organisations and other businesses,UNIVERSITY OF THE WEST OF ENGLAND,4000209354,10606.20,
Department for Education,NATIONAL COLLEGE FOR TEACHING AND LEADERSHIP AGENCY,03/06/2015,Grants,Operations Directorate,Grants to third sector organisations / not for profit organisations and other businesses,UNIVERSITY OF SHEFFIELD,4000209358,100440.00,
Department for Education,NATIONAL COLLEGE FOR TEACHING AND LEADERSHIP AGENCY,03/06/2015,Grants,Operations Directorate,Grants to third sector organisations / not for profit organisations and other businesses,NEWMAN COLLEGE,4000209363,1451.40,
Department for Education,NATIONAL COLLEGE FOR TEACHING AND LEADERSHIP AGENCY,03/06/2015,Grants,Operations Directorate,Grants to third sector organisations / not for profit organisations and other businesses,NEWMAN COLLEGE,4000209363,123440.00,
Department for Education,NATIONAL COLLEGE FOR TEACHING AND LEADERSHIP AGENCY,03/06/2015,Grants,Operations Directorate,Grants to third sector organisations / not for profit organisations and other businesses,NORTH BEDS SCITT CONSORTIUM,4000209364,31450.00,
Department for Education,NATIONAL COLLEGE FOR TEACHING AND LEADERSHIP AGENCY,03/06/2015,Grants,Operations Directorate,Grants to third sector organisations / not for profit organisations and other businesses,BROMLEY SCHOOLS COLLEGIATE,4000209365,29805.00,
Department for Education,NATIONAL COLLEGE FOR TEACHING AND LEADERSHIP AGENCY,03/06/2015,Grants,Operations Directorate,Grants to third sector organisations / not for profit organisations and other businesses,UNIVERSITY OF WINCHESTER,4000209369,72705.60,
Department for Education,NATIONAL COLLEGE FOR TEACHING AND LEADERSHIP AGENCY,03/06/2015,Grants,Operations Directorate,Grants to third sector organisations / not for profit organisations and other businesses,UNIVERSITY OF WINCHESTER,4000209369,85026.66,
Department for Education,NATIONAL COLLEGE FOR TEACHING AND LEADERSHIP AGENCY,03/06/2015,Grants,Delivery Directorate,Grants to third sector organisations / not for profit organisations and other businesses,UNIVERSITY OF WINCHESTER,4000209369,19285.20,
Department for Education,NATIONAL COLLEGE FOR TEACHING AND LEADERSHIP AGENCY,03/06/2015,Grants,Operations Directorate,Grants to third sector organisations / not for profit organisations and other businesses,CORNWALL SCITT,4000209370,38290.00,
Department for Education,NATIONAL COLLEGE FOR TEACHING AND LEADERSHIP AGENCY,03/06/2015,Grants,Operations Directorate,Grants to third sector organisations / not for profit organisations and other businesses,ANGLIA RUSKIN UNIVERSITY,4000209371,77723.50,
Department for Education,NATIONAL COLLEGE FOR TEACHING AND LEADERSHIP AGENCY,03/06/2015,Grants,Delivery Directorate,Grants to third sector organisations / not for profit organisations and other businesses,ANGLIA RUSKIN UNIVERSITY,4000209371,42720.00,
Department for Education,DEPARTMENT FOR EDUCATION,03/06/2015,Programme costs,Assessment and Curriculum and General Qualifications Group,Funding to deliver policies (excluding consultancy) paid to third parties via a service delivery contract,CFBT EDUCATION TRUST,4000209373,204951.60,
Department for Education,NATIONAL COLLEGE FOR TEACHING AND LEADERSHIP AGENCY,03/06/2015,Grants,Operations Directorate,Grants to third sector organisations / not for profit organisations and other businesses,OXFORD BROOKES UNIVERSITY,4000209375,5508.00,
Department for Education,NATIONAL COLLEGE FOR TEACHING AND LEADERSHIP AGENCY,03/06/2015,Grants,Operations Directorate,Grants to third sector organisations / not for profit organisations and other businesses,OXFORD BROOKES UNIVERSITY,4000209375,115180.00,
Department for Education,NATIONAL COLLEGE FOR TEACHING AND LEADERSHIP AGENCY,03/06/2015,Grants,Delivery Directorate,Grants to third sector organisations / not for profit organisations and other businesses,OXFORD BROOKES UNIVERSITY,4000209375,420.00,
Department for Education,NATIONAL COLLEGE FOR TEACHING AND LEADERSHIP AGENCY,03/06/2015,Grants,Delivery Directorate,Grants to third sector organisations / not for profit organisations and other businesses,UNIVERSITY OF SUNDERLAND,4000209377,5600.00,
Department for Education,NATIONAL COLLEGE FOR TEACHING AND LEADERSHIP AGENCY,03/06/2015,Grants,Operations Directorate,Grants to third sector organisations / not for profit organisations and other businesses,UNIVERSITY OF SUNDERLAND,4000209377,38831.40,
Department for Education,NATIONAL COLLEGE FOR TEACHING AND LEADERSHIP AGENCY,03/06/2015,Grants,Operations Directorate,Grants to third sector organisations / not for profit organisations and other businesses,UNIVERSITY OF SUNDERLAND,4000209377,92610.00,
Department for Education,NATIONAL COLLEGE FOR TEACHING AND LEADERSHIP AGENCY,03/06/2015,Grants,Operations Directorate,Grants to third sector organisations / not for profit organisations and other businesses,UNIVERSITY OF SUNDERLAND,4000209377,8820.00,
Department for Education,NATIONAL COLLEGE FOR TEACHING AND LEADERSHIP AGENCY,03/06/2015,Grants,Delivery Directorate,Grants to third sector organisations / not for profit organisations and other businesses,UNIVERSITY OF SUNDERLAND,4000209377,16599.60,
Department for Education,NATIONAL COLLEGE FOR TEACHING AND LEADERSHIP AGENCY,03/06/2015,Grants,Operations Directorate,Grants to third sector organisations / not for profit organisations and other businesses,LEEDS TRINITY UNIVERSITY COLLEGE,4000209378,54942.30,
Department for Education,NATIONAL COLLEGE FOR TEACHING AND LEADERSHIP AGENCY,03/06/2015,Grants,Operations Directorate,Grants to third sector organisations / not for profit organisations and other businesses,LEEDS TRINITY UNIVERSITY COLLEGE,4000209378,146860.00,
Department for Education,NATIONAL COLLEGE FOR TEACHING AND LEADERSHIP AGENCY,03/06/2015,Grants,Delivery Directorate,Grants to third sector organisations / not for profit organisations and other businesses,LEEDS TRINITY UNIVERSITY COLLEGE,4000209378,5880.00,
Department for Education,NATIONAL COLLEGE FOR TEACHING AND LEADERSHIP AGENCY,03/06/2015,Grants,Operations Directorate,Grants to third sector organisations / not for profit organisations and other businesses,UNIVERSITY OF DURHAM,4000209379,136440.00,
Department for Education,NATIONAL COLLEGE FOR TEACHING AND LEADERSHIP AGENCY,03/06/2015,Grants,Delivery Directorate,Grants to third sector organisations / not for profit organisations and other businesses,UNIVERSITY OF WOLVERHAMPTON,4000209380,19800.00,
Department for Education,NATIONAL COLLEGE FOR TEACHING AND LEADERSHIP AGENCY,03/06/2015,Grants,Operations Directorate,Grants to third sector organisations / not for profit organisations and other businesses,UNIVERSITY OF WOLVERHAMPTON,4000209380,145930.00,
Department for Education,NATIONAL COLLEGE FOR TEACHING AND LEADERSHIP AGENCY,03/06/2015,Grants,Operations Directorate,Grants to third sector organisations / not for profit organisations and other businesses,UNIVERSITY OF WOLVERHAMPTON,4000209380,12510.00,
Department for Education,NATIONAL COLLEGE FOR TEACHING AND LEADERSHIP AGENCY,03/06/2015,Grants,Delivery Directorate,Grants to third sector organisations / not for profit organisations and other businesses,UNIVERSITY OF WOLVERHAMPTON,4000209380,20160.00,
Department for Education,NATIONAL COLLEGE FOR TEACHING AND LEADERSHIP AGENCY,03/06/2015,Grants,Operations Directorate,Grants to third sector organisations / not for profit organisations and other businesses,UNIVERSITY OF NEWCASTLE UPON TYNE,4000209381,131800.00,
Department for Education,NATIONAL COLLEGE FOR TEACHING AND LEADERSHIP AGENCY,03/06/2015,Grants,Operations Directorate,Grants to third sector organisations / not for profit organisations and other businesses,UNIVERSITY OF GLOUCESTERSHIRE,4000209382,72440.00,
Department for Education,NATIONAL COLLEGE FOR TEACHING AND LEADERSHIP AGENCY,03/06/2015,Grants,Delivery Directorate,Grants to third sector organisations / not for profit organisations and other businesses,UNIVERSITY OF GLOUCESTERSHIRE,4000209382,22680.00,
Department for Education,NATIONAL COLLEGE FOR TEACHING AND LEADERSHIP AGENCY,03/06/2015,Grants,Delivery Directorate,Grants to third sector organisations / not for profit organisations and other businesses,LIVERPOOL HOPE UNIVERSITY,4000209383,10400.00,
Department for Education,NATIONAL COLLEGE FOR TEACHING AND LEADERSHIP AGENCY,03/06/2015,Grants,Operations Directorate,Grants to third sector organisations / not for profit organisations and other businesses,LIVERPOOL HOPE UNIVERSITY,4000209383,67954.95,
Department for Education,NATIONAL COLLEGE FOR TEACHING AND LEADERSHIP AGENCY,03/06/2015,Grants,Operations Directorate,Grants to third sector organisations / not for profit organisations and other businesses,LIVERPOOL HOPE UNIVERSITY,4000209383,172965.00,
Department for Education,NATIONAL COLLEGE FOR TEACHING AND LEADERSHIP AGENCY,03/06/2015,Grants,Delivery Directorate,Grants to third sector organisations / not for profit organisations and other businesses,BRADFORD COLLEGE,4000209384,19200.00,
Department for Education,NATIONAL COLLEGE FOR TEACHING AND LEADERSHIP AGENCY,03/06/2015,Grants,Operations Directorate,Grants to third sector organisations / not for profit organisations and other businesses,BRADFORD COLLEGE,4000209384,81140.00,
Department for Education,NATIONAL COLLEGE FOR TEACHING AND LEADERSHIP AGENCY,03/06/2015,Grants,Operations Directorate,Grants to third sector organisations / not for profit organisations and other businesses,BRADFORD COLLEGE,4000209384,2858.00,
Department for Education,NATIONAL COLLEGE FOR TEACHING AND LEADERSHIP AGENCY,03/06/2015,Grants,Delivery Directorate,Grants to third sector organisations / not for profit organisations and other businesses,UNIVERSITY OF SOUTHAMPTON,4000209393,16800.00,
Department for Education,NATIONAL COLLEGE FOR TEACHING AND LEADERSHIP AGENCY,03/06/2015,Grants,Operations Directorate,Grants to third sector organisations / not for profit organisations and other businesses,UNIVERSITY OF SOUTHAMPTON,4000209393,199176.00,
Department for Education,NATIONAL COLLEGE FOR TEACHING AND LEADERSHIP AGENCY,03/06/2015,Grants,Operations Directorate,Grants to third sector organisations / not for profit organisations and other businesses,UNIVERSITY OF SOUTHAMPTON,4000209393,5500.00,
Department for Education,NATIONAL COLLEGE FOR TEACHING AND LEADERSHIP AGENCY,03/06/2015,Grants,Operations Directorate,Grants to third sector organisations / not for profit organisations and other businesses,UNIVERSITY OF SOUTHAMPTON,4000209393,2970.00,
Department for Education,NATIONAL COLLEGE FOR TEACHING AND LEADERSHIP AGENCY,03/06/2015,Grants,Operations Directorate,Grants to third sector organisations / not for profit organisations and other businesses,LONDON SOUTH BANK UNIVERSITY,4000209394,40500.00,
Department for Education,NATIONAL COLLEGE FOR TEACHING AND LEADERSHIP AGENCY,03/06/2015,Grants,Delivery Directorate,Grants to third sector organisations / not for profit organisations and other businesses,THE UNIVERSITY OF READING,4000209395,28533.35,
Department for Education,NATIONAL COLLEGE FOR TEACHING AND LEADERSHIP AGENCY,03/06/2015,Grants,Operations Directorate,Grants to third sector organisations / not for profit organisations and other businesses,THE UNIVERSITY OF READING,4000209395,24786.00,
Department for Education,NATIONAL COLLEGE FOR TEACHING AND LEADERSHIP AGENCY,03/06/2015,Grants,Operations Directorate,Grants to third sector organisations / not for profit organisations and other businesses,THE UNIVERSITY OF READING,4000209395,175320.00,
Department for Education,NATIONAL COLLEGE FOR TEACHING AND LEADERSHIP AGENCY,03/06/2015,Grants,Operations Directorate,Grants to third sector organisations / not for profit organisations and other businesses,THE UNIVERSITY OF READING,4000209395,6515.00,
Department for Education,NATIONAL COLLEGE FOR TEACHING AND LEADERSHIP AGENCY,03/06/2015,Grants,Delivery Directorate,Grants to third sector organisations / not for profit organisations and other businesses,THE UNIVERSITY OF READING,4000209395,29896.20,
Department for Education,NATIONAL COLLEGE FOR TEACHING AND LEADERSHIP AGENCY,03/06/2015,Grants,Operations Directorate,Grants to third sector organisations / not for profit organisations and other businesses,CARMEL TEACHER TRAINING PARTNERSHIP,4000209396,52650.00,
Department for Education,NATIONAL COLLEGE FOR TEACHING AND LEADERSHIP AGENCY,03/06/2015,Grants,Operations Directorate,Grants to third sector organisations / not for profit organisations and other businesses,BEDFORD COLLEGE,4000209398,35550.00,
Department for Education,NATIONAL COLLEGE FOR TEACHING AND LEADERSHIP AGENCY,03/06/2015,Grants,Delivery Directorate,Grants to third sector organisations / not for profit organisations and other businesses,UNIVERSITY OF BIRMINGHAM,4000209401,3200.00,
Department for Education,NATIONAL COLLEGE FOR TEACHING AND LEADERSHIP AGENCY,03/06/2015,Grants,Operations Directorate,Grants to third sector organisations / not for profit organisations and other businesses,UNIVERSITY OF BIRMINGHAM,4000209401,228770.00,
Department for Education,NATIONAL COLLEGE FOR TEACHING AND LEADERSHIP AGENCY,03/06/2015,Grants,Operations Directorate,Grants to third sector organisations / not for profit organisations and other businesses,UNIVERSITY OF YORK,4000209404,76660.00,
Department for Education,NATIONAL COLLEGE FOR TEACHING AND LEADERSHIP AGENCY,11/06/2015,Professional Services Other,Delivery Directorate,"Fees / expenses of professionals, for example to implement advice or changes",MM TELEPERFORMANCE,4000210034,38620.00,
Department for Education,NATIONAL COLLEGE FOR TEACHING AND LEADERSHIP AGENCY,16/06/2015,Professional Services Other,Delivery Directorate,"Fees / expenses of professionals, for example to implement advice or changes",TELEPERFORMANCE LTD,4000210262,786608.86,
Department for Education,NATIONAL COLLEGE FOR TEACHING AND LEADERSHIP AGENCY,03/06/2015,Grants,Operations Directorate,Grants to third sector organisations / not for profit organisations and other businesses,UNIVERSITY OF PORTSMOUTH,4000209408,36470.00,
Department for Education,NATIONAL COLLEGE FOR TEACHING AND LEADERSHIP AGENCY,03/06/2015,Grants,Operations Directorate,Grants to third sector organisations / not for profit organisations and other businesses,UNIVERSITY OF PORTSMOUTH,4000209408,720.00,
Department for Education,NATIONAL COLLEGE FOR TEACHING AND LEADERSHIP AGENCY,03/06/2015,Grants,Delivery Directorate,Grants to third sector organisations / not for profit organisations and other businesses,UNIVERSITY OF PORTSMOUTH,4000209408,10080.00,
Department for Education,NATIONAL COLLEGE FOR TEACHING AND LEADERSHIP AGENCY,03/06/2015,Grants,Operations Directorate,Grants to third sector organisations / not for profit organisations and other businesses,UNIVERSITY OF BEDFORDSHIRE,4000209411,31951.80,
Department for Education,NATIONAL COLLEGE FOR TEACHING AND LEADERSHIP AGENCY,03/06/2015,Grants,Operations Directorate,Grants to third sector organisations / not for profit organisations and other businesses,UNIVERSITY OF BEDFORDSHIRE,4000209411,42610.00,
Department for Education,NATIONAL COLLEGE FOR TEACHING AND LEADERSHIP AGENCY,03/06/2015,Grants,Delivery Directorate,Grants to third sector organisations / not for profit organisations and other businesses,UNIVERSITY OF BEDFORDSHIRE,4000209411,11760.00,
Department for Education,NATIONAL COLLEGE FOR TEACHING AND LEADERSHIP AGENCY,03/06/2015,Grants,Operations Directorate,Grants to third sector organisations / not for profit organisations and other businesses,UNIVERSITY OF WARWICK,4000209414,141850.00,
Department for Education,NATIONAL COLLEGE FOR TEACHING AND LEADERSHIP AGENCY,03/06/2015,Grants,Operations Directorate,Grants to third sector organisations / not for profit organisations and other businesses,UNIVERSITY OF WARWICK,4000209414,810.00,
Department for Education,NATIONAL COLLEGE FOR TEACHING AND LEADERSHIP AGENCY,03/06/2015,Grants,Delivery Directorate,Grants to third sector organisations / not for profit organisations and other businesses,UNIVERSITY OF WARWICK,4000209414,25122.60,
Department for Education,DEPARTMENT FOR EDUCATION,04/06/2015,Grants,Free School Group,Grants to third sector organisations / not for profit organisations and other businesses,DEYES HIGH SCHOOL,4000209422,60000.00,
Department for Education,DEPARTMENT FOR EDUCATION,04/06/2015,Grants,Free School Group,Grants to third sector organisations / not for profit organisations and other businesses,THE GLOBAL ACADEMY UTC,4000209427,30000.00,
Department for Education,DEPARTMENT FOR EDUCATION,04/06/2015,Grants,Free School Group,Grants to third sector organisations / not for profit organisations and other businesses,THE SASH 2 SCHOOL,4000209428,30000.00,
Department for Education,DEPARTMENT FOR EDUCATION,04/06/2015,Grants,Free School Group,Grants to third sector organisations / not for profit organisations and other businesses,ONE DEGREE ACADEMY,4000209429,30000.00,
Department for Education,DEPARTMENT FOR EDUCATION,04/06/2015,Grants,Free School Group,Grants to third sector organisations / not for profit organisations and other businesses,CITIZEN SCHOOL TRUST,4000209430,30000.00,
Department for Education,DEPARTMENT FOR EDUCATION,04/06/2015,Grants,Free School Group,Grants to third sector organisations / not for profit organisations and other businesses,SOUTH BANK ENGINEERING UTC TRUST,4000209432,30000.00,
Department for Education,DEPARTMENT FOR EDUCATION,04/06/2015,Programme costs,"Childcare, Special Educational Needs and Children's Strategy Group",Funding to deliver policies (excluding consultancy) paid to third parties via a service delivery contract,MOTT MACDONALD LTD,4000209435,92445.60,
Department for Education,DEPARTMENT FOR EDUCATION,05/06/2015,ICT,Property Asset Management Group,Partial payment for IT hardware / consumables,MACE LTD,4000209627,30759.60,
Department for Education,DEPARTMENT FOR EDUCATION,04/06/2015,Grants,Free School Group,Grants to third sector organisations / not for profit organisations and other businesses,NEW SCHOOLS NETWORK,4000209438,122679.85,
Department for Education,DEPARTMENT FOR EDUCATION,04/06/2015,Grants,Free School Group,Grants to third sector organisations / not for profit organisations and other businesses,WYNYARD CE PRIMARY SCHOOL,4000209439,44000.00,
Department for Education,DEPARTMENT FOR EDUCATION,04/06/2015,Grants,"Childcare, Special Educational Needs and Children's Strategy Group",Grants to third sector organisations / not for profit organisations and other businesses,GROUNDWORK UK,4000209445,186913.64,
Department for Education,DEPARTMENT FOR EDUCATION,04/06/2015,ICT,Information Technology Group,ICT Services - hardware maintenance and support,CAPGEMINI UK PLC,4000209446,92798.30,
Department for Education,DEPARTMENT FOR EDUCATION,04/06/2015,Grants,Free School Group,Grants to third sector organisations / not for profit organisations and other businesses,UTC CREWE,4000209451,30000.00,
Department for Education,DEPARTMENT FOR EDUCATION,04/06/2015,Grants,Free School Group,Grants to third sector organisations / not for profit organisations and other businesses,DON VALLEY UTC ACADEMY TRUST,4000209454,30000.00,
Department for Education,DEPARTMENT FOR EDUCATION,04/06/2015,Grants,Free School Group,Grants to third sector organisations / not for profit organisations and other businesses,JOHN CABOT FEDERATION,4000209460,60000.00,
Department for Education,DEPARTMENT FOR EDUCATION,01/06/2015,Facilities,Property Asset Management Group,"Building maintenance and repair, including repainting, replacing flooring, etc.",INTERSERVE FACILITIES MANAGEMENT LTD,4000208947,208319.53,
Department for Education,DEPARTMENT FOR EDUCATION,04/06/2015,Grants,Free School Group,Grants to third sector organisations / not for profit organisations and other businesses,THE ARNEWOOD SCHOOL,4000209471,44000.00,
Department for Education,DEPARTMENT FOR EDUCATION,04/06/2015,Grants,System Reform Group,Current grant funding to other government departments for DfE's contribution to jointly funded programmes ,DEPARTMENT FOR COMMUNITIES & LOCAL GOVERNMENT,4000209482,1590689.00,
Department for Education,DEPARTMENT FOR EDUCATION,03/06/2015,Facilities,Property Asset Management Group,"Building maintenance and repair, including repainting, replacing flooring, etc.",INTERSERVE FACILITIES MANAGEMENT LTD,4000209265,348891.56,
Department for Education,DEPARTMENT FOR EDUCATION,04/06/2015,Grants,Academies Delivery Group,Grants to third sector organisations / not for profit organisations and other businesses,THE GOOD SHEPHERD TRUST,4000209494,50000.00,
Department for Education,DEPARTMENT FOR EDUCATION,04/06/2015,Programme costs,Children in Care Division,Funding to deliver policies (excluding consultancy) paid to third parties via a service delivery contract,CATCH 22,4000209501,203841.11,
Department for Education,DEPARTMENT FOR EDUCATION,17/06/2015,Professional Services Consultancy and Contingent Labour,Children's Services and Departmental Strategy Safeguarding Group,"Advisory services including fees, travel and expenses",PENNA PLC,4000210388,41276.45,
Department for Education,DEPARTMENT FOR EDUCATION,24/06/2015,Professional Services Consultancy and Contingent Labour,Information Technology Group,"Advisory services including fees, travel and expenses",EGRESS SOFTWARE TECHNOLOGIES LTD,4000210815,46153.80,
Department for Education,DEPARTMENT FOR EDUCATION,04/06/2015,Professional Services Consultancy and Contingent Labour,Information Technology Group,Costs related to temporary workers,RUSSAM GMS LTD,4000209506,10886.10,
Department for Education,DEPARTMENT FOR EDUCATION,04/06/2015,Professional Services Consultancy and Contingent Labour,Information Technology Group,Costs related to temporary workers,RUSSAM GMS LTD,4000209506,53166.00,
Department for Education,DEPARTMENT FOR EDUCATION,04/06/2015,Professional Services Consultancy and Contingent Labour,Information Technology Group,Costs related to temporary workers,RUSSAM GMS LTD,4000209506,23460.00,
Department for Education,DEPARTMENT FOR EDUCATION,04/06/2015,Professional Services Consultancy and Contingent Labour,Information Technology Group,Costs related to temporary workers,RUSSAM GMS LTD,4000209506,15594.00,
Department for Education,DEPARTMENT FOR EDUCATION,04/06/2015,Professional Services Consultancy and Contingent Labour,Information Technology Group,Costs related to temporary workers,RUSSAM GMS LTD,4000209506,21978.00,
Department for Education,DEPARTMENT FOR EDUCATION,04/06/2015,Grants,Free School Group,Grants to third sector organisations / not for profit organisations and other businesses,EDUCATION FOR THE 21ST CENTURY,4000209508,30000.00,
Department for Education,DEPARTMENT FOR EDUCATION,04/06/2015,Grants,Academies Delivery Group,Grants to third sector organisations / not for profit organisations and other businesses,EBOR ACADEMY TRUST,4000209510,50000.00,
Department for Education,DEPARTMENT FOR EDUCATION,04/06/2015,Grants,Free School Group,Grants to third sector organisations / not for profit organisations and other businesses,BICESTER TECHNOLOGY STUDIO TRUST,4000209512,30000.00,
Department for Education,DEPARTMENT FOR EDUCATION,04/06/2015,Grants,Free School Group,Grants to third sector organisations / not for profit organisations and other businesses,THE WREN SCHOOL ACADEMY TRUST,4000209522,60000.00,
Department for Education,DEPARTMENT FOR EDUCATION,04/06/2015,Grants,Free School Group,Grants to third sector organisations / not for profit organisations and other businesses,PLYMOUTH STUDIO SCHOOL ACADEMY TRUST,4000209523,60000.00,
Department for Education,DEPARTMENT FOR EDUCATION,04/06/2015,Grants,Free School Group,Grants to third sector organisations / not for profit organisations and other businesses,SCARBOROUGH UNIVERSITY TECHNICAL COLLEGE,4000209530,30000.00,
Department for Education,DEPARTMENT FOR EDUCATION,04/06/2015,Grants,Free School Group,Grants to third sector organisations / not for profit organisations and other businesses,LEEDS UTC LTD,4000209531,30000.00,
Department for Education,DEPARTMENT FOR EDUCATION,04/06/2015,Grants,Free School Group,Grants to third sector organisations / not for profit organisations and other businesses,CHANNELING POSITIVITY ACADEMY TRUST,4000209533,44000.00,
Department for Education,DEPARTMENT FOR EDUCATION,04/06/2015,Grants,Free School Group,Grants to third sector organisations / not for profit organisations and other businesses,WMG ACADEMY FOR YOUNG ENGINEERS SOLIHULL,4000209534,30000.00,
Department for Education,DEPARTMENT FOR EDUCATION,04/06/2015,Grants,Free School Group,Grants to third sector organisations / not for profit organisations and other businesses,WRITHLINGTON ACADEMY TRUST - MENDIP STUDIO SCHOOL,4000209535,60000.00,
Department for Education,DEPARTMENT FOR EDUCATION,04/06/2015,Grants,Free School Group,Grants to third sector organisations / not for profit organisations and other businesses,WOOTTON PARK SCHOOL,4000209536,30000.00,
Department for Education,DEPARTMENT FOR EDUCATION,04/06/2015,Grants,Free School Group,Grants to third sector organisations / not for profit organisations and other businesses,BROMLEY UNIVERSITY TECHNICAL COLLEGE,4000209537,30000.00,
Department for Education,DEPARTMENT FOR EDUCATION,04/06/2015,Grants,Free School Group,Grants to third sector organisations / not for profit organisations and other businesses,THE PARTNERSHIP LEARNING TRUST,4000209538,30000.00,
Department for Education,DEPARTMENT FOR EDUCATION,04/06/2015,Grants,Free School Group,Grants to third sector organisations / not for profit organisations and other businesses,FOREST BRIDGE SCHOOL,4000209539,44000.00,
Department for Education,DEPARTMENT FOR EDUCATION,04/06/2015,Grants,Free School Group,Grants to third sector organisations / not for profit organisations and other businesses,TWYFORD CE ACADEMIES TRUST,4000209542,30000.00,
Department for Education,DEPARTMENT FOR EDUCATION,04/06/2015,Grants,Free School Group,Grants to third sector organisations / not for profit organisations and other businesses,THE BRITISH SIKH SCHOOL,4000209544,60000.00,
Department for Education,DEPARTMENT FOR EDUCATION,04/06/2015,Grants,Free School Group,Grants to third sector organisations / not for profit organisations and other businesses,HARROW ACADEMIES TRUST,4000209545,45000.00,
Department for Education,NATIONAL COLLEGE FOR TEACHING AND LEADERSHIP AGENCY,05/06/2015,Programme costs,Delivery Directorate,Funding to deliver policies (excluding consultancy) paid to third parties via a service delivery contract,TEACH FIRST,4000209549,3130147.22,
Department for Education,DEPARTMENT FOR EDUCATION,05/06/2015,Grants,Office of the Schools Commissioner Group,Grants to third sector organisations / not for profit organisations and other businesses,BENNETT MEMORIAL DIOCESAN SCHOOL,4000209552,75000.00,
Department for Education,DEPARTMENT FOR EDUCATION,05/06/2015,Grants,Closing the Gap Group,Grants to third sector organisations / not for profit organisations and other businesses,COMMANDO JOES,4000209553,103894.90,
Department for Education,DEPARTMENT FOR EDUCATION,05/06/2015,Grants,Children's Services and Departmental Strategy Safeguarding Group,Grants to third sector organisations / not for profit organisations and other businesses,VIRTUAL STAFF COLLEGE,4000209556,63892.95,
Department for Education,DEPARTMENT FOR EDUCATION,05/06/2015,Grants,"Childcare, Special Educational Needs and Children's Strategy Group",Grants to third sector organisations / not for profit organisations and other businesses,NATIONAL ASSOCIATION OF CLUBS FOR YOUNG PEOPLE,4000209560,163683.99,
Department for Education,DEPARTMENT FOR EDUCATION,05/06/2015,Grants,Children in Care Division,Grants to local authorities outside aggregate external funding or aggregate exchequer grant,TRAFFORD MB COUNCIL,4000209561,54513.00,
Department for Education,DEPARTMENT FOR EDUCATION,26/06/2015,Grants,Academies Delivery Group,Capital grants paid to educational establishments,HORNBEAM ACADEMY TRUST,4000210958,40000.00,
Department for Education,DEPARTMENT FOR EDUCATION,05/06/2015,Facilities,Property Asset Management Group,Rent,GVA GRIMLEY LTD,4000209576,126170.54,
Department for Education,DEPARTMENT FOR EDUCATION,05/06/2015,Facilities,Property Asset Management Group,Rent,GVA GRIMLEY LTD,4000209576,1135.49,
Department for Education,DEPARTMENT FOR EDUCATION,05/06/2015,Grants,"Childcare, Special Educational Needs and Children's Strategy Group",Grants to third sector organisations / not for profit organisations and other businesses,FAMILY & CHILDCARE TRUST,4000209578,353605.58,
Department for Education,DEPARTMENT FOR EDUCATION,05/06/2015,Grants,"Childcare, Special Educational Needs and Children's Strategy Group",Grants to third sector organisations / not for profit organisations and other businesses,NORTH MUSIC TRUST,4000209588,67638.05,
Department for Education,DEPARTMENT FOR EDUCATION,05/06/2015,Grants,Academies Delivery Group,Grants to third sector organisations / not for profit organisations and other businesses,THE GLYN LEARNING FOUNDATION,4000209591,50000.00,
Department for Education,NATIONAL COLLEGE FOR TEACHING AND LEADERSHIP AGENCY,05/06/2015,Programme costs,Delivery Directorate,Funding to deliver policies (excluding consultancy) paid to third parties via a service delivery contract,Teach First Initial Teacher Development,4000209592,4993870.89,
Department for Education,DEPARTMENT FOR EDUCATION,05/06/2015,Personnel Related,Human Resources Group,Childcare expenses paid to staff,FIDELITI LTD,4000209593,89014.22,
Department for Education,DEPARTMENT FOR EDUCATION,05/06/2015,Grants,Academies Delivery Group,Grants to third sector organisations / not for profit organisations and other businesses,SANDY UPPER SCHOOL & COMMUNITY COLLEGE,4000209595,100000.00,
Department for Education,DEPARTMENT FOR EDUCATION,05/06/2015,Programme costs,Families Group,Funding to deliver policies (excluding consultancy) paid to third parties via a service delivery contract,BARNARDOS,4000209600,113876.44,
Department for Education,DEPARTMENT FOR EDUCATION,05/06/2015,Grants,Free School Group,Grants to third sector organisations / not for profit organisations and other businesses,THE ALDRIDGE FOUNDATION,4000209612,90000.00,
Department for Education,DEPARTMENT FOR EDUCATION,05/06/2015,Programme costs,"Childcare, Special Educational Needs and Children's Strategy Group",Funding to deliver policies (excluding consultancy) paid to third parties via a service delivery contract,MOTT MACDONALD LTD,4000209623,179978.40,
Department for Education,DEPARTMENT FOR EDUCATION,09/06/2015,ICT,Property Asset Management Group,Partial payment for IT hardware / consumables,MACE LTD,4000209864,187218.40,
Department for Education,DEPARTMENT FOR EDUCATION,05/06/2015,Grants,Children in Care Division,Grants to local authorities outside aggregate external funding or aggregate exchequer grant,SHEFFIELD CITY COUNCIL,4000209632,45692.75,
Department for Education,DEPARTMENT FOR EDUCATION,05/06/2015,Grants,Academies Delivery Group,Grants to third sector organisations / not for profit organisations and other businesses,PETERBOROUGH DIOCESE EDUCATION TRUST,4000209638,57000.00,
Department for Education,DEPARTMENT FOR EDUCATION,05/06/2015,Grants,Closing the Gap Group,Grants to third sector organisations / not for profit organisations and other businesses,PRINCES TRUST VOLUNTEERS PROGRAMME,4000209650,355453.26,
Department for Education,DEPARTMENT FOR EDUCATION,05/06/2015,Programme costs,Children in Care Division,Funding to deliver policies (excluding consultancy) paid to third parties via a service delivery contract,CONSORTIUM OF VOLUNTARY ADOPTION AGENCIES UK LTD,4000209652,34343.00,
Department for Education,DEPARTMENT FOR EDUCATION,05/06/2015,ICT,Information Technology Group,ICT Hardware,CAPGEMINI UK PLC,4000209655,67395.07,
Department for Education,DEPARTMENT FOR EDUCATION,05/06/2015,Grants,Academies Delivery Group,Grants to third sector organisations / not for profit organisations and other businesses,DYMCHURCH PRIMARY SCHOOL,4000209662,25000.00,
Department for Education,DEPARTMENT FOR EDUCATION,05/06/2015,Grants,Academies Delivery Group,Grants to third sector organisations / not for profit organisations and other businesses,ST LUKE ACADEMIES TRUST,4000209663,45000.00,
Department for Education,DEPARTMENT FOR EDUCATION,05/06/2015,Grants,Academies Delivery Group,Grants to third sector organisations / not for profit organisations and other businesses,ST BRENDANS CATHOLIC PRIMARY SCHOOL,4000209664,25000.00,
Department for Education,DEPARTMENT FOR EDUCATION,05/06/2015,Grants,Children in Care Division,Grants to local authorities outside aggregate external funding or aggregate exchequer grant,THE SOMERSET COUNTY COUNCIL,4000209672,205105.00,
Department for Education,DEPARTMENT FOR EDUCATION,05/06/2015,Grants,Children in Care Division,Grants to local authorities outside aggregate external funding or aggregate exchequer grant,STAFFORDSHIRE COUNTY COUNCIL,4000209674,45917.63,
Department for Education,DEPARTMENT FOR EDUCATION,09/06/2015,Facilities,Property Asset Management Group,Property management,METHODS CONSULTING LTD,4000209814,139647.16,
Department for Education,DEPARTMENT FOR EDUCATION,05/06/2015,Grants,Academies Delivery Group,Grants to third sector organisations / not for profit organisations and other businesses,MOSSBOURNE COMMUNITY ACADEMY LTD,4000209676,25000.00,
Department for Education,DEPARTMENT FOR EDUCATION,05/06/2015,Programme costs,Assessment and Curriculum and General Qualifications Group,Funding to deliver policies (excluding consultancy) paid to third parties via a service delivery contract,TRIBAL EDUCATION LIMITED,4000209677,152210.40,
Department for Education,DEPARTMENT FOR EDUCATION,05/06/2015,Grants,Children in Care Division,Grants to local authorities outside aggregate external funding or aggregate exchequer grant,WILTSHIRE COUNCIL,4000209686,54093.00,
Department for Education,DEPARTMENT FOR EDUCATION,08/06/2015,Grants,Academies Delivery Group,Grants to third sector organisations / not for profit organisations and other businesses,ST JOHN'S CHURCH OF ENGLAND PRIMARY SCHOOL,4000209689,25000.00,
Department for Education,DEPARTMENT FOR EDUCATION,08/06/2015,Grants,Academies Delivery Group,Grants to third sector organisations / not for profit organisations and other businesses,WILLIAM HOWARD SCHOOL,4000209692,70000.00,
Department for Education,DEPARTMENT FOR EDUCATION,08/06/2015,Grants,Academies Delivery Group,Grants to third sector organisations / not for profit organisations and other businesses,ST JAMES SCHOOL,4000209696,25000.00,
Department for Education,NATIONAL COLLEGE FOR TEACHING AND LEADERSHIP AGENCY,04/06/2015,Professional Services Other,Operations Directorate,"Fees / expenses of professionals, for example to implement advice or changes",NABARRO LLP,4000209436,33504.96,
Department for Education,DEPARTMENT FOR EDUCATION,08/06/2015,Programme costs,Closing the Gap Group,Funding to deliver policies (excluding consultancy) paid to third parties via a service delivery contract,OFQUAL,4000209739,540000.00,
Department for Education,DEPARTMENT FOR EDUCATION,04/06/2015,Professional Services Consultancy and Contingent Labour,Information Technology Group,Costs related to temporary workers,RUSSAM GMS LTD,4000209506,66681.60,
Department for Education,DEPARTMENT FOR EDUCATION,04/06/2015,Professional Services Consultancy and Contingent Labour,Information Technology Group,Costs related to temporary workers,RUSSAM GMS LTD,4000209506,28402.56,
Department for Education,DEPARTMENT FOR EDUCATION,08/06/2015,Professional Services Consultancy and Contingent Labour,Information Technology Group,Costs related to temporary workers,FDM GROUP LTD,4000209756,7452.00,
Department for Education,DEPARTMENT FOR EDUCATION,08/06/2015,Professional Services Consultancy and Contingent Labour,Information Technology Group,Costs related to temporary workers,FDM GROUP LTD,4000209756,12150.00,
Department for Education,DEPARTMENT FOR EDUCATION,08/06/2015,Professional Services Consultancy and Contingent Labour,Information Technology Group,Costs related to temporary workers,FDM GROUP LTD,4000209756,13608.00,
Department for Education,DEPARTMENT FOR EDUCATION,08/06/2015,Professional Services Consultancy and Contingent Labour,Information Technology Group,Costs related to temporary workers,RUSSAM GMS LTD,4000209758,7200.00,
Department for Education,DEPARTMENT FOR EDUCATION,08/06/2015,Grants,Office of the Schools Commissioner Group,Grants to third sector organisations / not for profit organisations and other businesses,HULL COLLABORATIVE ACADEMY TRUST,4000209767,75000.00,
Department for Education,DEPARTMENT FOR EDUCATION,08/06/2015,Grants,Academies Delivery Group,Grants to third sector organisations / not for profit organisations and other businesses,TELFORD COLLEGE OF ARTS & TECHNOLOGY,4000209780,70000.00,
Department for Education,DEPARTMENT FOR EDUCATION,08/06/2015,Grants,Children in Care Division,Grants to third sector organisations / not for profit organisations and other businesses,THE SHARE FOUNDATION 3RD PARTY TRUST,4000209791,32800.00,
Department for Education,DEPARTMENT FOR EDUCATION,08/06/2015,Grants,Academies Delivery Group,Grants to third sector organisations / not for profit organisations and other businesses,BRIDPORT PRIMARY SCHOOL,4000209792,25000.00,
Department for Education,DEPARTMENT FOR EDUCATION,19/06/2015,Personnel Related,Finance and Commercial Group,Pension related top-up payment for staff retiring early through the voluntary early release scheme.,GBS RE CO CIVIL SUPERANNUATION,4000210481,2776667.22,
Department for Education,DEPARTMENT FOR EDUCATION,09/06/2015,Grants,Families Group,Grants to third sector organisations / not for profit organisations and other businesses,THE TAVISTOCK & PORTMAN NHS FOUNDATION TRUST,4000209852,128264.33,
Department for Education,DEPARTMENT FOR EDUCATION,08/06/2015,Professional Services Consultancy and Contingent Labour,Information Technology Group,Costs related to temporary workers,RUSSAM GMS LTD,4000209758,43304.40,
Department for Education,DEPARTMENT FOR EDUCATION,09/06/2015,Grants,Children in Care Division,Grants to third sector organisations / not for profit organisations and other businesses,THE SHARE FOUNDATION 3RD PARTY TRUST,4000209875,48800.00,
Department for Education,NATIONAL COLLEGE FOR TEACHING AND LEADERSHIP AGENCY,11/06/2015,Professional Services Other,Operations Directorate,"Fees / expenses of professionals, for example to implement advice or changes",NABARRO LLP,4000210001,26551.58,
Department for Education,DEPARTMENT FOR EDUCATION,08/06/2015,Professional Services Consultancy and Contingent Labour,Information Technology Group,Costs related to temporary workers,RUSSAM GMS LTD,4000209758,32376.00,
Department for Education,NATIONAL COLLEGE FOR TEACHING AND LEADERSHIP AGENCY,17/06/2015,Professional Services Consultancy and Contingent Labour,Operations Directorate,Costs related to temporary workers,BROOK STREET UK LTD,4000210378,6162.22,
Department for Education,STANDARDS AND TESTING AGENCY,10/06/2015,Print and Print Management,Test Operations Division,Secure printing,WILLIAMS LEA,4000209902,36692.59,
Department for Education,STANDARDS AND TESTING AGENCY,10/06/2015,Programme costs,Test Development Division,Funding to deliver policies (excluding consultancy) paid to third parties via a service delivery contract,NFER,4000209903,318297.25,
Department for Education,DEPARTMENT FOR EDUCATION,10/06/2015,Grants,"Childcare, Special Educational Needs and Children's Strategy Group",Grants to third sector organisations / not for profit organisations and other businesses,SILENT SECRET LTD,4000209907,26044.12,
Department for Education,DEPARTMENT FOR EDUCATION,10/06/2015,Grants,"Childcare, Special Educational Needs and Children's Strategy Group",Grants to third sector organisations / not for profit organisations and other businesses,BRITISH DYSLEXIA ASSOCIATION,4000209917,71643.11,
Department for Education,DEPARTMENT FOR EDUCATION,10/06/2015,ICT,Information Technology Group,ICT Services,REDWEB,4000209922,49605.14,
Department for Education,DEPARTMENT FOR EDUCATION,10/06/2015,Professional Services Consultancy and Contingent Labour,Information Technology Group,Costs related to temporary workers,RUSSAM GMS LTD,4000209891,23100.00,
Department for Education,NATIONAL COLLEGE FOR TEACHING AND LEADERSHIP AGENCY,26/06/2015,Professional Services Other,Delivery Directorate,"Fees / expenses of professionals, for example to implement advice or changes",FUTURE LEADERS LTD,4000211026,433000.00,
Department for Education,DEPARTMENT FOR EDUCATION,10/06/2015,Professional Services Consultancy and Contingent Labour,Information Technology Group,Costs related to temporary workers,RUSSAM GMS LTD,4000209891,9792.00,
Department for Education,DEPARTMENT FOR EDUCATION,10/06/2015,Grants,Children's Services and Departmental Strategy Safeguarding Group,Grants to third sector organisations / not for profit organisations and other businesses,THE ASSOCIATION OF INDEPENDENT LSCB CHAIRS,4000209973,30000.00,
Department for Education,DEPARTMENT FOR EDUCATION,24/06/2015,Miscellaneous Expenditure,System Reform Group,Tribunals and trials service fees,HMCTS HM COURTS & TRIBUNALS SERVICE,4000210773,48128.00,
Department for Education,DEPARTMENT FOR EDUCATION,10/06/2015,Grants,"Childcare, Special Educational Needs and Children's Strategy Group",Grants to third sector organisations / not for profit organisations and other businesses,BRITISH ASSOC FOR EARLY CHILDHOOD EDUCATION,4000209976,39295.41,
Department for Education,NATIONAL COLLEGE FOR TEACHING AND LEADERSHIP AGENCY,10/06/2015,Programme costs,Delivery Directorate,Funding to deliver policies (excluding consultancy) paid to third parties via a service delivery contract,Teach First Initial Teacher Development,4000209984,1492546.87,
Department for Education,DEPARTMENT FOR EDUCATION,10/06/2015,Professional Services Consultancy and Contingent Labour,Information Technology Group,Costs related to temporary workers,METHODS CONSULTING LTD,4000209936,10800.00,
Department for Education,DEPARTMENT FOR EDUCATION,11/06/2015,Grants,Academies Delivery Group,Grants to third sector organisations / not for profit organisations and other businesses,FUTURE LEADERS LTD,4000210000,53198.00,
Department for Education,NATIONAL COLLEGE FOR TEACHING AND LEADERSHIP AGENCY,26/06/2015,Travel,Operations Directorate,"Staff business travel including air, coach, ferry, rail, taxi and car hire",REDFERN TRAVEL LTD,4000211059,946.91,
Department for Education,NATIONAL COLLEGE FOR TEACHING AND LEADERSHIP AGENCY,11/06/2015,Programme costs,Research and Development Directorate,Funding to deliver policies (excluding consultancy) paid to third parties via a service delivery contract,CFBT EDUCATION TRUST,4000210002,31700.00,
Department for Education,STANDARDS AND TESTING AGENCY,11/06/2015,Programme costs,Test Development Division,Funding to deliver policies (excluding consultancy) paid to third parties via a service delivery contract,SCOTTISH QUALIFICATIONS AUTHORITY,4000210003,118636.16,
Department for Education,DEPARTMENT FOR EDUCATION,11/06/2015,Programme costs,Systems and Accountability Group,Funding to deliver policies (excluding consultancy) paid to third parties via a service delivery contract,RESEARCH MACHINES PLC,4000210021,487536.00,
Department for Education,NATIONAL COLLEGE FOR TEACHING AND LEADERSHIP AGENCY,11/06/2015,Office Solutions,Operations Directorate,Post and courier services,MM TELEPERFORMANCE,4000210034,9319.15,
Department for Education,DEPARTMENT FOR EDUCATION,01/06/2015,Professional Services Other,Closing the Gap Group,Research and evaluation activities,NFER TRADING LIMITED INV T,4000209016,91667.00,
Department for Education,NATIONAL COLLEGE FOR TEACHING AND LEADERSHIP AGENCY,01/06/2015,Professional Services Other,Operations Directorate,Research and evaluation activities,TNS BMRB,4000209024,36090.00,
Department for Education,DEPARTMENT FOR EDUCATION,11/06/2015,ICT,Information Technology Group,ICT Software,LOCKHEED MARTIN,4000210043,56535.59,
Department for Education,DEPARTMENT FOR EDUCATION,11/06/2015,Grants,Children in Care Division,Grants to third sector organisations / not for profit organisations and other businesses,CONSORTIUM OF VOLUNTARY ADOPTION AGENCIES UK LTD,4000210049,481884.47,
Department for Education,DEPARTMENT FOR EDUCATION,12/06/2015,Grants,Academies Delivery Group,Grants to third sector organisations / not for profit organisations and other businesses,FOCUS ACADEMIES TRUST UK LTD,4000210064,25000.00,
Department for Education,DEPARTMENT FOR EDUCATION,12/06/2015,Grants,Academies Delivery Group,Grants to third sector organisations / not for profit organisations and other businesses,TAPTON SCHOOL,4000210071,70000.00,
Department for Education,NATIONAL COLLEGE FOR TEACHING AND LEADERSHIP AGENCY,12/06/2015,Programme costs,Operations Directorate,Funding to deliver policies (excluding consultancy) paid to third parties via a service delivery contract,TEXUNA TECHNOLOGIES,4000210085,26146.20,
Department for Education,DEPARTMENT FOR EDUCATION,12/06/2015,Grants,Closing the Gap Group,Grants to local authorities / other establishments within aggregate external funding or aggregate exchequer grant,LONDON BOROUGH OF HACKNEY,4000210092,36228.00,
Department for Education,DEPARTMENT FOR EDUCATION,12/06/2015,Grants,Academies Delivery Group,Grants to third sector organisations / not for profit organisations and other businesses,ESHER C OF E HIGH SCHOOL,4000210094,37307.32,
Department for Education,DEPARTMENT FOR EDUCATION,22/06/2015,Energy and Fuels,Property Asset Management Group,Electricity supply,DARLINGTON BOROUGH COUNCIL,4000210573,26115.56,
Department for Education,DEPARTMENT FOR EDUCATION,12/06/2015,Grants,Academies Delivery Group,Grants to third sector organisations / not for profit organisations and other businesses,ACTIVATE LEARNING ACADEMY TRUST,4000210101,45000.00,
Department for Education,DEPARTMENT FOR EDUCATION,12/06/2015,Grants,Academies Delivery Group,Grants to third sector organisations / not for profit organisations and other businesses,WEST SUFFOLK COLLEGE,4000210102,25000.00,
Department for Education,DEPARTMENT FOR EDUCATION,12/06/2015,Grants,Office of the Schools Commissioner Group,Grants to third sector organisations / not for profit organisations and other businesses,CARILLION ACADEMIES TRUST,4000210103,75000.00,
Department for Education,DEPARTMENT FOR EDUCATION,15/06/2015,ICT,Information Technology Group,ICT Services,REDWEB,4000210107,81114.00,
Department for Education,DEPARTMENT FOR EDUCATION,10/06/2015,Professional Services Consultancy and Contingent Labour,Information Technology Group,Costs related to temporary workers,METHODS CONSULTING LTD,4000209936,15027.74,
Department for Education,DEPARTMENT FOR EDUCATION,15/06/2015,Communications,Communications Group,Marketing services - printing and publication,PROLOG,4000210115,12922.80,
Department for Education,DEPARTMENT FOR EDUCATION,15/06/2015,Communications,Information Technology Group,Digital media and web production,PROLOG,4000210115,37376.18,
Department for Education,DEPARTMENT FOR EDUCATION,15/06/2015,Communications,Information Technology Group,Digital media and web production,PROLOG,4000210115,79944.07,
Department for Education,STANDARDS AND TESTING AGENCY,15/06/2015,Programme costs,Test Development Division,Funding to deliver policies (excluding consultancy) paid to third parties via a service delivery contract,PROLOG,4000210115,49354.00,
Department for Education,STANDARDS AND TESTING AGENCY,15/06/2015,Print and Print Management,Test Operations Division,Secure printing,PROLOG,4000210115,69335.62,
Department for Education,NATIONAL COLLEGE FOR TEACHING AND LEADERSHIP AGENCY,15/06/2015,Office Solutions,Delivery Directorate,Office Supplies,PROLOG,4000210115,590.40,
Department for Education,NATIONAL COLLEGE FOR TEACHING AND LEADERSHIP AGENCY,15/06/2015,Communications,Operations Directorate,Digital media and web production,PROLOG,4000210115,2100.00,
Department for Education,NATIONAL COLLEGE FOR TEACHING AND LEADERSHIP AGENCY,26/06/2015,Travel,Operations Directorate,Non-contractor's travel expenses,REDFERN TRAVEL LTD,4000211059,3.43,
Department for Education,NATIONAL COLLEGE FOR TEACHING AND LEADERSHIP AGENCY,15/06/2015,Office Solutions,Operations Directorate,Office Supplies,PROLOG,4000210115,306.67,
Department for Education,NATIONAL COLLEGE FOR TEACHING AND LEADERSHIP AGENCY,15/06/2015,Office Solutions,Operations Directorate,Document Storage,PROLOG,4000210115,531.58,
Department for Education,NATIONAL COLLEGE FOR TEACHING AND LEADERSHIP AGENCY,15/06/2015,Programme costs,Operations Directorate,Funding to deliver policies (excluding consultancy) paid to third parties via a service delivery contract,PROLOG,4000210115,746.60,
Department for Education,DEPARTMENT FOR EDUCATION,29/06/2015,Professional Services Consultancy and Contingent Labour,Information Technology Group,Costs related to temporary workers,LIBERATA UK LTD,4000211090,50952.00,
Department for Education,DEPARTMENT FOR EDUCATION,15/06/2015,Personnel Related,School Standards Group,Additional pension contributions paid to teachers working in European schools following a European Court judgement.,TEACHERS PENSIONS,4000210120,35439.60,
Department for Education,DEPARTMENT FOR EDUCATION,02/06/2015,Professional Services Other,Families Group,Research and evaluation activities,UNIVERSITY OF OXFORD,4000209066,38765.00,
Department for Education,DEPARTMENT FOR EDUCATION,15/06/2015,ICT,Information Technology Group,ICT Services,EDUSERV,4000210126,290503.21,
Department for Education,DEPARTMENT FOR EDUCATION,15/06/2015,ICT,Information Technology Group,ICT Services,EDUSERV,4000210126,54384.00,
Department for Education,DEPARTMENT FOR EDUCATION,15/06/2015,Grants,"Childcare, Special Educational Needs and Children's Strategy Group",Grants to third sector organisations / not for profit organisations and other businesses,KIDS UNLTD,4000210133,29151.00,
Department for Education,DEPARTMENT FOR EDUCATION,15/06/2015,Programme costs,Families Group,Funding to deliver policies (excluding consultancy) paid to third parties via a service delivery contract,TAVISTOCK & PORTMAN NHS FOUNDATION,4000210158,34090.00,
Department for Education,DEPARTMENT FOR EDUCATION,15/06/2015,Grants,Academies Delivery Group,Grants to third sector organisations / not for profit organisations and other businesses,WAKEFIELD CITY MULTI ACADEMIES TRUST,4000210160,25000.00,
Department for Education,DEPARTMENT FOR EDUCATION,15/06/2015,Programme costs,Closing the Gap Group,Funding to deliver policies (excluding consultancy) paid to third parties via a service delivery contract,CHILDRENS FOOD TRUST,4000210166,34654.51,
Department for Education,STANDARDS AND TESTING AGENCY,15/06/2015,Programme costs,Test Development Division,Funding to deliver policies (excluding consultancy) paid to third parties via a service delivery contract,NFER,4000210174,568217.76,
Department for Education,STANDARDS AND TESTING AGENCY,15/06/2015,Programme costs,Test Development Division,Funding to deliver policies (excluding consultancy) paid to third parties via a service delivery contract,LEARN DIRECT,4000210178,395690.53,
Department for Education,DEPARTMENT FOR EDUCATION,15/06/2015,Grants,Academies Delivery Group,Grants to third sector organisations / not for profit organisations and other businesses,BURTON BRADSTOCK CE VC PRIMARY SCHOOL,4000210181,25000.00,
Department for Education,DEPARTMENT FOR EDUCATION,15/06/2015,Grants,Academies Delivery Group,Grants to third sector organisations / not for profit organisations and other businesses,LENT RISE COMBINED SCHOOL,4000210182,25000.00,
Department for Education,DEPARTMENT FOR EDUCATION,16/06/2015,ICT,Information Technology Group,ICT Services,EDUSERV,4000210221,319963.20,
Department for Education,NATIONAL COLLEGE FOR TEACHING AND LEADERSHIP AGENCY,16/06/2015,Programme costs,Delivery Directorate,Funding to external organisations to deliver policies (excluding consultancy),EMLC,4000210222,164359.76,
Department for Education,DEPARTMENT FOR EDUCATION,16/06/2015,ICT,Systems and Accountability Group,ICT Services,SCISYS UK LTD,4000210246,27000.00,
Department for Education,DEPARTMENT FOR EDUCATION,03/06/2015,Professional Services Other,Strategic Analysis and Research and Policy Impact Group,Research and evaluation activities,ECORYS UK LTD,4000209166,25000.00,
Department for Education,NATIONAL COLLEGE FOR TEACHING AND LEADERSHIP AGENCY,15/06/2015,Office Solutions,Operations Directorate,Post and courier services,PROLOG,4000210115,6700.91,
Department for Education,DEPARTMENT FOR EDUCATION,16/06/2015,Professional Services Consultancy and Contingent Labour,Information Technology Group,Costs related to temporary workers,ALPINE RESOURCING LTD,4000210267,11143.68,
Department for Education,STANDARDS AND TESTING AGENCY,16/06/2015,Programme costs,Test Development Division,Funding to deliver policies (excluding consultancy) paid to third parties via a service delivery contract,NFER,4000210280,92926.00,
Department for Education,DEPARTMENT FOR EDUCATION,17/06/2015,Grants,Closing the Gap Group,Grants to third sector organisations / not for profit organisations and other businesses,CADET VOCATIONAL QUALIFICATIONS ORGANISATION LTD,4000210286,54710.56,
Department for Education,DEPARTMENT FOR EDUCATION,17/06/2015,Grants,Children in Care Division,Grants to third sector organisations / not for profit organisations and other businesses,CAMBRIDGE EDUCATION HEAD OFFICE,4000210287,2000000.00,
Department for Education,NATIONAL COLLEGE FOR TEACHING AND LEADERSHIP AGENCY,03/06/2015,Professional Services Other,Operations Directorate,Research and evaluation activities,SHEFFIELD HALLAM UNIVERSITY,4000209321,0.00,
Department for Education,DEPARTMENT FOR EDUCATION,17/06/2015,Grants,Children's Services and Departmental Strategy Safeguarding Group,Grants to third sector organisations / not for profit organisations and other businesses,ARK UK PROGRAMMES,4000210300,247949.31,
Department for Education,DEPARTMENT FOR EDUCATION,17/06/2015,Programme costs,Closing the Gap Group,Funding to deliver policies (excluding consultancy) paid to third parties via a service delivery contract,CHILDRENS FOOD TRUST,4000210312,332160.02,
Department for Education,DEPARTMENT FOR EDUCATION,17/06/2015,Grants,Closing the Gap Group,Grants to third sector organisations / not for profit organisations and other businesses,TRAINING 2000,4000210315,28950.00,
Department for Education,DEPARTMENT FOR EDUCATION,17/06/2015,Programme costs,Due Diligence and Counter Extremism Group,Funding to deliver policies (excluding consultancy) paid to third parties via a service delivery contract,INFORMATION PROCESSING LIMITED,4000210316,30960.00,
Department for Education,DEPARTMENT FOR EDUCATION,17/06/2015,Grants,Free School Group,Grants to third sector organisations / not for profit organisations and other businesses,KINGS COLLEGE LONDON,4000210333,58057.82,
Department for Education,DEPARTMENT FOR EDUCATION,17/06/2015,Programme costs,"Childcare, Special Educational Needs and Children's Strategy Group",Funding to deliver policies (excluding consultancy) paid to third parties via a service delivery contract,NCB,4000210342,1596166.80,
Department for Education,DEPARTMENT FOR EDUCATION,17/06/2015,ICT,Systems and Accountability Group,ICT Services,CAPGEMINI UK PLC,4000210348,109135.86,
Department for Education,DEPARTMENT FOR EDUCATION,17/06/2015,Grants,Children's Services and Departmental Strategy Safeguarding Group,Grants to third sector organisations / not for profit organisations and other businesses,DONCASTER CHILDRENS TRUST,4000210364,194893.00,
Department for Education,DEPARTMENT FOR EDUCATION,17/06/2015,ICT,Systems and Accountability Group,ICT Services,SOFTWARE FOR DATA ANALYSIS LTD,4000210369,108720.00,
Department for Education,DEPARTMENT FOR EDUCATION,10/06/2015,Facilities,Property Asset Management Group,"Building maintenance and repair, including repainting, replacing flooring, etc.",SODEXO LTD,4000209975,127024.86,
Department for Education,DEPARTMENT FOR EDUCATION,16/06/2015,Professional Services Consultancy and Contingent Labour,Information Technology Group,Costs related to temporary workers,ALPINE RESOURCING LTD,4000210267,39199.73,
Department for Education,DEPARTMENT FOR EDUCATION,17/06/2015,Professional Services Consultancy and Contingent Labour,Free School Group,Costs related to temporary workers,BROOK STREET UK LTD,4000210378,1483.48,
Department for Education,DEPARTMENT FOR EDUCATION,17/06/2015,Professional Services Consultancy and Contingent Labour,Academies Delivery Group,Costs related to temporary workers,BROOK STREET UK LTD,4000210378,22173.03,
Department for Education,DEPARTMENT FOR EDUCATION,17/06/2015,Professional Services Consultancy and Contingent Labour,Regional School Commissioners Group,Costs related to temporary workers,BROOK STREET UK LTD,4000210378,7684.46,
Department for Education,DEPARTMENT FOR EDUCATION,15/06/2015,Professional Services Other,Strategic Analysis and Research and Policy Impact Group,Research and evaluation activities,PEARSON EDUCATION LTD,4000210125,128635.00,
Department for Education,DEPARTMENT FOR EDUCATION,17/06/2015,Grants,Closing the Gap Group,Grants to third sector organisations / not for profit organisations and other businesses,COMMANDO JOES,4000210385,75633.18,
Department for Education,DEPARTMENT FOR EDUCATION,17/06/2015,Grants,Closing the Gap Group,Grants to third sector organisations / not for profit organisations and other businesses,KNOWSLEY SKILLS ACADEMY,4000210386,34400.00,
Department for Education,DEPARTMENT FOR EDUCATION,17/06/2015,Grants,Closing the Gap Group,Grants to third sector organisations / not for profit organisations and other businesses,CHALLENGER TROOP,4000210387,75414.00,
Department for Education,DEPARTMENT FOR EDUCATION,17/06/2015,Professional Services Consultancy and Contingent Labour,Public Communications Group,Costs related to temporary workers,BROOK STREET UK LTD,4000210378,2831.33,
Department for Education,DEPARTMENT FOR EDUCATION,17/06/2015,Grants,Children's Services and Departmental Strategy Safeguarding Group,Grants to third sector organisations / not for profit organisations and other businesses,VIRTUAL STAFF COLLEGE,4000210389,95073.67,
Department for Education,DEPARTMENT FOR EDUCATION,18/06/2015,Grants,Children in Care Division,Grants to third sector organisations / not for profit organisations and other businesses,AFTER ADOPTION,4000210414,27726.92,
Department for Education,DEPARTMENT FOR EDUCATION,18/06/2015,Grants,Academies Delivery Group,Grants to third sector organisations / not for profit organisations and other businesses,CASTLE SCHOOL EDUCATION TRUST,4000210417,80000.00,
Department for Education,DEPARTMENT FOR EDUCATION,18/06/2015,Grants,Academies Delivery Group,Grants to third sector organisations / not for profit organisations and other businesses,PARALLEL LEARNING TRUST,4000210418,61250.00,
Department for Education,DEPARTMENT FOR EDUCATION,18/06/2015,Grants,Academies Delivery Group,Grants to third sector organisations / not for profit organisations and other businesses,CATCH22 MULTI ACADEMIES TRUST LTD,4000210421,25000.00,
Department for Education,NATIONAL COLLEGE FOR TEACHING AND LEADERSHIP AGENCY,18/06/2015,Communications,Operations Directorate,"Publicity, advertising, media advertising campaigns (excluding recruitment adverts)",CARAT,4000210424,62239.40,
Department for Education,DEPARTMENT FOR EDUCATION,18/06/2015,Grants,Closing the Gap Group,Grants to third sector organisations / not for profit organisations and other businesses,THE GAZELLE FOUNDATION,4000210427,38100.00,
Department for Education,DEPARTMENT FOR EDUCATION,18/06/2015,Grants,Academies Delivery Group,Grants to third sector organisations / not for profit organisations and other businesses,BURSLEY ACADEMY,4000210428,45000.00,
Department for Education,DEPARTMENT FOR EDUCATION,18/06/2015,Grants,Free School Group,Grants to third sector organisations / not for profit organisations and other businesses,THE RUNNYMEDE SCHOOL,4000210430,60000.00,
Department for Education,DEPARTMENT FOR EDUCATION,18/06/2015,Grants,Free School Group,Grants to third sector organisations / not for profit organisations and other businesses,SGS BERKELEY GREEN UTC TRUST,4000210433,90000.00,
Department for Education,DEPARTMENT FOR EDUCATION,18/06/2015,Grants,Academies Delivery Group,Grants to third sector organisations / not for profit organisations and other businesses,CARILLION ACADEMIES TRUST,4000210434,25000.00,
Department for Education,DEPARTMENT FOR EDUCATION,18/06/2015,Grants,Academies Delivery Group,Grants to third sector organisations / not for profit organisations and other businesses,LITTLE LEVER SCHOOL,4000210435,25000.00,
Department for Education,DEPARTMENT FOR EDUCATION,18/06/2015,Grants,Academies Delivery Group,Grants to third sector organisations / not for profit organisations and other businesses,KNUTTON ST MARYS CE VC PRIMARY SCHOOL,4000210437,25000.00,
Department for Education,DEPARTMENT FOR EDUCATION,19/06/2015,Grants,Children in Care Division,Grants to local authorities outside aggregate external funding or aggregate exchequer grant,LONDON BOROUGH OF HAMMERSMITH & FULHAM,4000210447,31250.00,
Department for Education,DEPARTMENT FOR EDUCATION,19/06/2015,Programme costs,Children in Care Division,Funding to deliver policies (excluding consultancy) paid to third parties via a service delivery contract,KINGS COLLEGE LONDON,4000210450,457958.00,
Department for Education,DEPARTMENT FOR EDUCATION,19/06/2015,Grants,Children in Care Division,Grants to local authorities outside aggregate external funding or aggregate exchequer grant,MANCHESTER CITY COUNCIL,4000210453,37685.35,
Department for Education,DEPARTMENT FOR EDUCATION,19/06/2015,Grants,Children in Care Division,Grants to local authorities outside aggregate external funding or aggregate exchequer grant,WEST SUSSEX COUNTY COUNCIL,4000210458,83557.00,
Department for Education,DEPARTMENT FOR EDUCATION,19/06/2015,Grants,Children in Care Division,Grants to local authorities outside aggregate external funding or aggregate exchequer grant,OXFORDSHIRE COUNTY COUNCIL,4000210463,53028.00,
Department for Education,DEPARTMENT FOR EDUCATION,19/06/2015,Grants,Academies Delivery Group,Grants to third sector organisations / not for profit organisations and other businesses,BRIDPORT ST MARYS CE PRIMARY SCHOOL,4000210469,25000.00,
Department for Education,DEPARTMENT FOR EDUCATION,19/06/2015,Programme costs,Assessment and Curriculum and General Qualifications Group,Funding to deliver policies (excluding consultancy) paid to third parties via a service delivery contract,MYSCIENCE CO LTD,4000210471,121504.38,
Department for Education,DEPARTMENT FOR EDUCATION,19/06/2015,Grants,Children in Care Division,Grants to local authorities outside aggregate external funding or aggregate exchequer grant,LEEDS CITY COUNCIL,4000210472,123278.00,
Department for Education,DEPARTMENT FOR EDUCATION,19/06/2015,Grants,Children in Care Division,Grants to local authorities outside aggregate external funding or aggregate exchequer grant,NEWCASTLE CITY COUNCIL,4000210474,31297.20,
Department for Education,DEPARTMENT FOR EDUCATION,19/06/2015,Grants,Academies Delivery Group,Grants to third sector organisations / not for profit organisations and other businesses,OXFORD DIOCESAN SCHOOL TRUST,4000210479,25000.00,
Department for Education,DEPARTMENT FOR EDUCATION,15/06/2015,Print and Print Management,Free School Group,Provision of redaction services,PROLOG,4000210115,13542.19,
Department for Education,DEPARTMENT FOR EDUCATION,19/06/2015,Grants,Free School Group,Grants to third sector organisations / not for profit organisations and other businesses,EXETER MATHEMATICS SCHOOL TRUST,4000210482,70401.34,
Department for Education,DEPARTMENT FOR EDUCATION,19/06/2015,Grants,Academies Delivery Group,Grants to third sector organisations / not for profit organisations and other businesses,ABBEYWOOD FIRST SCHOOL,4000210488,25000.00,
Department for Education,DEPARTMENT FOR EDUCATION,19/06/2015,Programme costs,Closing the Gap Group,Funding to deliver policies (excluding consultancy) paid to third parties via a service delivery contract,SOIL ASSOCIATION LTD,4000210493,336851.43,
Department for Education,DEPARTMENT FOR EDUCATION,19/06/2015,Programme costs,Closing the Gap Group,Funding to deliver policies (excluding consultancy) paid to third parties via a service delivery contract,MAGIC BREAKFAST,4000210494,198980.50,
Department for Education,DEPARTMENT FOR EDUCATION,19/06/2015,Grants,"Childcare, Special Educational Needs and Children's Strategy Group",Grants to third sector organisations / not for profit organisations and other businesses,CORAM CLC,4000210498,65113.68,
Department for Education,DEPARTMENT FOR EDUCATION,19/06/2015,Grants,Children in Care Division,Grants to third sector organisations / not for profit organisations and other businesses,THE SHARE FOUNDATION 3RD PARTY TRUST,4000210504,50600.00,
Department for Education,DEPARTMENT FOR EDUCATION,19/06/2015,Grants,Academies Delivery Group,Grants to third sector organisations / not for profit organisations and other businesses,THE WARRINER SCHOOL,4000210505,125000.00,
Department for Education,DEPARTMENT FOR EDUCATION,19/06/2015,Grants,Academies Delivery Group,Grants to third sector organisations / not for profit organisations and other businesses,SIBFORD GOWER PRIMARY SCHOOL,4000210506,27000.00,
Department for Education,DEPARTMENT FOR EDUCATION,22/06/2015,Grants,Academies Delivery Group,Grants to third sector organisations / not for profit organisations and other businesses,BECKFOOT & HAZELBECK TRUST,4000210517,25000.00,
Department for Education,DEPARTMENT FOR EDUCATION,22/06/2015,Grants,Academies Delivery Group,Grants to third sector organisations / not for profit organisations and other businesses,THE CHALLENGER MULTI ACADEMY TRUST,4000210523,70000.00,
Department for Education,DEPARTMENT FOR EDUCATION,17/06/2015,Facilities,Property Asset Management Group,Project related removal costs,PICKFORDS LTD,4000210374,78994.80,
Department for Education,DEPARTMENT FOR EDUCATION,22/06/2015,Grants,Free School Group,Grants to third sector organisations / not for profit organisations and other businesses,THE BIG LITTLE SCHOOLS COOPERATIVE,4000210524,66000.00,
Department for Education,DEPARTMENT FOR EDUCATION,22/06/2015,Programme costs,Teachers and Teaching Group,Funding to deliver policies (excluding consultancy) paid to third parties via a service delivery contract,GOVERNMENT ACTUARYS DEPARTMENT GAD,4000210562,37189.46,
Department for Education,DEPARTMENT FOR EDUCATION,22/06/2015,Programme costs,Assessment and Curriculum and General Qualifications Group,Funding to deliver policies (excluding consultancy) paid to third parties via a service delivery contract,CFBT EDUCATION TRUST,4000210569,204950.40,
Department for Education,DEPARTMENT FOR EDUCATION,04/06/2015,Facilities,Property Asset Management Group,Rent,GVA GRIMLEY LTD,4000209490,3794830.69,
Department for Education,DEPARTMENT FOR EDUCATION,17/06/2015,Professional Services Other,Families Group,Research and evaluation activities,TNS BMRB,4000210299,44986.80,
Department for Education,DEPARTMENT FOR EDUCATION,22/06/2015,Programme costs,Teachers and Teaching Group,Monthly contract payment to deliver the administration of the Teachers' Pension Scheme.,CAPITA LIFE & PENSIONS SERVICES LTD,4000210601,1628627.96,
Department for Education,DEPARTMENT FOR EDUCATION,22/06/2015,Grants,Academies Delivery Group,Grants to third sector organisations / not for profit organisations and other businesses,OXFORD DIOCESAN SCHOOL TRUST,4000210607,50000.00,
Department for Education,DEPARTMENT FOR EDUCATION,22/06/2015,Grants,"Childcare, Special Educational Needs and Children's Strategy Group",Grants to third sector organisations / not for profit organisations and other businesses,THE LONDON LEADERSHIP STRATEGY,4000210608,41553.25,
Department for Education,DEPARTMENT FOR EDUCATION,23/06/2015,Programme costs,Children in Care Division,Funding to deliver policies (excluding consultancy) paid to third parties via a service delivery contract,CORAM,4000210613,38558.25,
Department for Education,DEPARTMENT FOR EDUCATION,23/06/2015,Professional Services Other,Children's Services and Departmental Strategy Safeguarding Group,Research and evaluation activities,TNS BMRB,4000210618,48112.80,
Department for Education,DEPARTMENT FOR EDUCATION,23/06/2015,Grants,Children's Services and Departmental Strategy Safeguarding Group,Grants to third sector organisations / not for profit organisations and other businesses,ARK UK PROGRAMMES,4000210620,85463.97,
Department for Education,DEPARTMENT FOR EDUCATION,23/06/2015,Programme costs,Strategic Analysis and Research and Policy Impact Group,Funding to deliver policies (excluding consultancy) paid to third parties via a service delivery contract,4 CHILDREN EARLY INTERVENTION,4000210626,104166.00,
Department for Education,DEPARTMENT FOR EDUCATION,23/06/2015,Programme costs,Closing the Gap Group,Funding to deliver policies (excluding consultancy) paid to third parties via a service delivery contract,MAGIC BREAKFAST,4000210633,149997.83,
Department for Education,DEPARTMENT FOR EDUCATION,23/06/2015,Grants,Families Group,Grants to third sector organisations / not for profit organisations and other businesses,SAFE FAMILIES FOR CHILDREN,4000210649,112736.77,
Department for Education,DEPARTMENT FOR EDUCATION,23/06/2015,Grants,Families Group,Grants to third sector organisations / not for profit organisations and other businesses,RESOLUTIONS CONSULTANCY PTY LTD,4000210659,82012.07,
Department for Education,DEPARTMENT FOR EDUCATION,23/06/2015,Professional Services Other,Strategic Analysis and Research and Policy Impact Group,Research and evaluation activities,NATIONAL CENTRE FOR SOCIAL RESEARCH,4000210688,233987.00,
Department for Education,DEPARTMENT FOR EDUCATION,23/06/2015,Programme costs,Assessment and Curriculum and General Qualifications Group,Funding to deliver policies (excluding consultancy) paid to third parties via a service delivery contract,MATHEMATICS IN EDUCATION & INDUSTRY,4000210716,494000.00,
Department for Education,DEPARTMENT FOR EDUCATION,23/06/2015,Programme costs,Children's Services and Departmental Strategy Safeguarding Group,Funding to deliver policies (excluding consultancy) paid to third parties via a service delivery contract,DELOITTE MSC LTD,4000210717,52371.58,
Department for Education,NATIONAL COLLEGE FOR TEACHING AND LEADERSHIP AGENCY,24/06/2015,Programme costs,Delivery Directorate,Funding to external organisations to deliver policies (excluding consultancy),EMLC,4000210721,156496.10,
Department for Education,DEPARTMENT FOR EDUCATION,24/06/2015,Grants,"Childcare, Special Educational Needs and Children's Strategy Group",Grants to local authorities / other establishments within aggregate external funding or aggregate exchequer grant,LEICESTER CITY COUNCIL,4000210731,11040.00,
Department for Education,DEPARTMENT FOR EDUCATION,24/06/2015,Grants,Children in Care Division,Grants to local authorities outside aggregate external funding or aggregate exchequer grant,LEICESTER CITY COUNCIL,4000210731,24161.00,
Department for Education,DEPARTMENT FOR EDUCATION,24/06/2015,Programme costs,Families Group,Funding to deliver policies (excluding consultancy) paid to third parties via a service delivery contract,CARERS TRUST,4000210762,224419.39,
Department for Education,DEPARTMENT FOR EDUCATION,05/06/2015,Facilities,Property Asset Management Group,Rent,GVA GRIMLEY LTD,4000209576,38047.50,
Department for Education,DEPARTMENT FOR EDUCATION,22/06/2015,Professional Services Consultancy and Contingent Labour,Finance and Commercial Group,"Fees / expenses of professionals such as auditors, accountants, lawyers, etc. engaged to provide advice or opinion on how to affect something",GOVERNMENT ACTUARYS DEPARTMENT,4000210584,25409.81,
Department for Education,DEPARTMENT FOR EDUCATION,01/06/2015,ICT,Property Asset Management Group,ICT Software,HUDDLE,4000208946,28800.00,
Department for Education,DEPARTMENT FOR EDUCATION,24/06/2015,ICT,Systems and Accountability Group,ICT Services,CAPGEMINI UK PLC,4000210842,76350.00,
Department for Education,DEPARTMENT FOR EDUCATION,24/06/2015,ICT,Information Technology Group,ICT Services,EDUSERV,4000210843,30236.40,
Department for Education,DEPARTMENT FOR EDUCATION,25/06/2015,Grants,Families Group,Grants to local authorities outside aggregate external funding or aggregate exchequer grant,STOKE ON TRENT CITY COUNCIL,4000210844,147000.00,
Department for Education,DEPARTMENT FOR EDUCATION,25/06/2015,Grants,Families Group,Grants to local authorities outside aggregate external funding or aggregate exchequer grant,THE ROYAL BOROUGH OF WINDSOR & MAIDENHEAD,4000210845,109000.00,
Department for Education,DEPARTMENT FOR EDUCATION,25/06/2015,Grants,Families Group,Grants to local authorities outside aggregate external funding or aggregate exchequer grant,CAMBRIDGESHIRE COUNTY COUNCIL,4000210846,129842.00,
Department for Education,DEPARTMENT FOR EDUCATION,25/06/2015,Grants,Families Group,Grants to local authorities outside aggregate external funding or aggregate exchequer grant,TORBAY COUNCIL,4000210847,250000.00,
Department for Education,DEPARTMENT FOR EDUCATION,25/06/2015,Grants,Families Group,Grants to local authorities outside aggregate external funding or aggregate exchequer grant,OXFORDSHIRE COUNTY COUNCIL,4000210848,37650.00,
Department for Education,DEPARTMENT FOR EDUCATION,25/06/2015,Programme costs,Children in Care Division,Funding to deliver policies (excluding consultancy) paid to third parties via a service delivery contract,BRITISH ASSOCIATION FOR ADOPTION & FOSTERING,4000210852,97158.00,
Department for Education,DEPARTMENT FOR EDUCATION,25/06/2015,Programme costs,Children in Care Division,Funding to deliver policies (excluding consultancy) paid to third parties via a service delivery contract,BRITISH ASSOCIATION FOR ADOPTION & FOSTERING,4000210852,23650.72,
Department for Education,DEPARTMENT FOR EDUCATION,25/06/2015,Grants,Families Group,Grants to local authorities outside aggregate external funding or aggregate exchequer grant,SURREY COUNTY COUNCIL,4000210853,179250.00,
Department for Education,DEPARTMENT FOR EDUCATION,25/06/2015,Grants,Families Group,Grants to local authorities outside aggregate external funding or aggregate exchequer grant,THE ROYAL BOROUGH OF KENSINGTON & CHELSEA COUNCIL,4000210854,81550.00,
Department for Education,DEPARTMENT FOR EDUCATION,25/06/2015,Grants,Families Group,Grants to local authorities outside aggregate external funding or aggregate exchequer grant,LONDON BOROUGH OF SOUTHWARK COUNCIL,4000210855,102877.00,
Department for Education,DEPARTMENT FOR EDUCATION,25/06/2015,Grants,Families Group,Grants to local authorities outside aggregate external funding or aggregate exchequer grant,LONDON BOROUGH OF HAMMERSMITH & FULHAM COUNCIL,4000210856,138800.00,
Department for Education,DEPARTMENT FOR EDUCATION,25/06/2015,Grants,Families Group,Grants to local authorities outside aggregate external funding or aggregate exchequer grant,LONDON BOROUGH OF ISLINGTON COUNCIL,4000210858,697242.00,
Department for Education,DEPARTMENT FOR EDUCATION,25/06/2015,Grants,Families Group,Grants to local authorities outside aggregate external funding or aggregate exchequer grant,LONDON BOROUGH OF TOWER HAMLETS COUNCIL,4000210859,28207.00,
Department for Education,DEPARTMENT FOR EDUCATION,25/06/2015,Grants,Families Group,Grants to local authorities outside aggregate external funding or aggregate exchequer grant,LEEDS CITY COUNCIL,4000210860,836632.00,
Department for Education,DEPARTMENT FOR EDUCATION,25/06/2015,Programme costs,Closing the Gap Group,Funding to deliver policies (excluding consultancy) paid to third parties via a service delivery contract,DESIGN & TECHNOLOGY ASSOCIATION,4000210862,54973.50,
Department for Education,DEPARTMENT FOR EDUCATION,25/06/2015,Grants,"Childcare, Special Educational Needs and Children's Strategy Group",Grants to third sector organisations / not for profit organisations and other businesses,ACTION FOR CHILDREN,4000210863,33175.75,
Department for Education,DEPARTMENT FOR EDUCATION,25/06/2015,Grants,Families Group,Grants to local authorities outside aggregate external funding or aggregate exchequer grant,SHEFFIELD CITY COUNCIL,4000210864,250000.00,
Department for Education,DEPARTMENT FOR EDUCATION,25/06/2015,Grants,Families Group,Grants to local authorities outside aggregate external funding or aggregate exchequer grant,CITY OF WESTMINSTER,4000210865,110150.00,
Department for Education,DEPARTMENT FOR EDUCATION,25/06/2015,Grants,Families Group,Grants to local authorities outside aggregate external funding or aggregate exchequer grant,LONDON BOROUGH OF EALING COUNCIL,4000210868,606500.00,
Department for Education,DEPARTMENT FOR EDUCATION,25/06/2015,Grants,Families Group,Grants to local authorities outside aggregate external funding or aggregate exchequer grant,LONDON BOROUGH OF ENFIELD COUNCIL,4000210869,491250.00,
Department for Education,DEPARTMENT FOR EDUCATION,25/06/2015,Grants,Families Group,Grants to local authorities outside aggregate external funding or aggregate exchequer grant,LONDON BOROUGH OF HARROW COUNCIL,4000210870,118051.00,
Department for Education,DEPARTMENT FOR EDUCATION,25/06/2015,Grants,Families Group,Grants to local authorities outside aggregate external funding or aggregate exchequer grant,SEFTON COUNCIL,4000210872,179000.00,
Department for Education,DEPARTMENT FOR EDUCATION,25/06/2015,Grants,Families Group,Grants to local authorities outside aggregate external funding or aggregate exchequer grant,STOCKPORT MBC,4000210874,475448.00,
Department for Education,DEPARTMENT FOR EDUCATION,25/06/2015,Grants,Families Group,Grants to local authorities outside aggregate external funding or aggregate exchequer grant,WIGAN MBC,4000210875,413894.00,
Department for Education,DEPARTMENT FOR EDUCATION,25/06/2015,Grants,Families Group,Grants to local authorities outside aggregate external funding or aggregate exchequer grant,CALDERDALE MBC,4000210876,31566.00,
Department for Education,DEPARTMENT FOR EDUCATION,25/06/2015,Grants,Families Group,Grants to local authorities outside aggregate external funding or aggregate exchequer grant,NEWCASTLE CITY COUNCIL,4000210877,395004.00,
Department for Education,DEPARTMENT FOR EDUCATION,24/06/2015,Facilities,Property Asset Management Group,"Building maintenance and repair, including repainting, replacing flooring, etc.",SODEXO LTD,4000210817,113162.29,
Department for Education,DEPARTMENT FOR EDUCATION,25/06/2015,Grants,Academies Delivery Group,Grants to third sector organisations / not for profit organisations and other businesses,TBAP TRUST,4000210879,78750.00,
Department for Education,DEPARTMENT FOR EDUCATION,25/06/2015,Grants,Academies Delivery Group,Grants to third sector organisations / not for profit organisations and other businesses,OXFORD DIOCESAN SCHOOL TRUST,4000210882,25000.00,
Department for Education,NATIONAL COLLEGE FOR TEACHING AND LEADERSHIP AGENCY,25/06/2015,Communications,Operations Directorate,"Publicity, advertising, media advertising campaigns (excluding recruitment adverts)",INFERNO LTD,4000210887,71285.25,
Department for Education,NATIONAL COLLEGE FOR TEACHING AND LEADERSHIP AGENCY,25/06/2015,Communications,Operations Directorate,"Publicity, advertising, media advertising campaigns (excluding recruitment adverts)",INFERNO LTD,4000210887,49623.71,
Department for Education,DEPARTMENT FOR EDUCATION,25/06/2015,Grants,Families Group,Grants to local authorities outside aggregate external funding or aggregate exchequer grant,HERTFORDSHIRE COUNTY COUNCIL,4000210889,805136.00,
Department for Education,DEPARTMENT FOR EDUCATION,25/06/2015,Grants,Families Group,Grants to local authorities outside aggregate external funding or aggregate exchequer grant,LONDON BOROUGH OF HACKNEY,4000210893,467540.00,
Department for Education,DEPARTMENT FOR EDUCATION,25/06/2015,Programme costs,Children's Services and Departmental Strategy Safeguarding Group,Funding to deliver policies (excluding consultancy) paid to third parties via a service delivery contract,THE COLLEGE OF SOCIAL WORK,4000210899,25279.00,
Department for Education,DEPARTMENT FOR EDUCATION,25/06/2015,Grants,Free School Group,Grants to third sector organisations / not for profit organisations and other businesses,South Durham UTC,4000210909,60000.00,
Department for Education,DEPARTMENT FOR EDUCATION,25/06/2015,Facilities,Property Asset Management Group,Business rates,GVA GRIMLEY LTD,4000210878,600042.00,
Department for Education,DEPARTMENT FOR EDUCATION,25/06/2015,ICT,Information Technology Group,ICT Services - hardware maintenance and support,CAPGEMINI UK PLC,4000210918,91585.86,
Department for Education,DEPARTMENT FOR EDUCATION,25/06/2015,Programme costs,"Childcare, Special Educational Needs and Children's Strategy Group",Funding to deliver policies (excluding consultancy) paid to third parties via a service delivery contract,CONTACT A FAMILY,4000210919,241525.82,
Department for Education,DEPARTMENT FOR EDUCATION,25/06/2015,Grants,Academies Delivery Group,Grants to third sector organisations / not for profit organisations and other businesses,SALISBURY PLAIN,4000210920,100000.00,
Department for Education,DEPARTMENT FOR EDUCATION,25/06/2015,Grants,Families Group,Grants to local authorities outside aggregate external funding or aggregate exchequer grant,KINGSTON UPON HULL COUNCIL,4000210930,122502.00,
Department for Education,DEPARTMENT FOR EDUCATION,25/06/2015,Grants,Families Group,Grants to local authorities outside aggregate external funding or aggregate exchequer grant,NORTH EAST LINCOLNSHIRE COUNCIL,4000210931,227591.00,
Department for Education,DEPARTMENT FOR EDUCATION,25/06/2015,Grants,Families Group,Grants to local authorities outside aggregate external funding or aggregate exchequer grant,NORTH YORKSHIRE COUNTY COUNCIL,4000210932,222873.00,
Department for Education,DEPARTMENT FOR EDUCATION,25/06/2015,Grants,Families Group,Grants to local authorities outside aggregate external funding or aggregate exchequer grant,BUCKINGHAMSHIRE COUNTY COUNCIL,4000210933,102907.00,
Department for Education,DEPARTMENT FOR EDUCATION,25/06/2015,Grants,Families Group,Grants to local authorities outside aggregate external funding or aggregate exchequer grant,DERBYSHIRE COUNTY COUNCIL,4000210934,122502.00,
Department for Education,DEPARTMENT FOR EDUCATION,25/06/2015,Grants,Families Group,Grants to local authorities outside aggregate external funding or aggregate exchequer grant,DURHAM COUNTY COUNCIL,4000210935,568456.00,
Department for Education,DEPARTMENT FOR EDUCATION,25/06/2015,Grants,Families Group,Grants to local authorities outside aggregate external funding or aggregate exchequer grant,HAMPSHIRE COUNTY COUNCIL,4000210936,620929.00,
Department for Education,DEPARTMENT FOR EDUCATION,25/06/2015,Grants,Families Group,Grants to local authorities outside aggregate external funding or aggregate exchequer grant,CHESHIRE EAST COUNCIL,4000210937,199134.00,
Department for Education,DEPARTMENT FOR EDUCATION,26/06/2015,Grants,Children in Care Division,Grants to third sector organisations / not for profit organisations and other businesses,BRITISH ASSOCIATION FOR ADOPTION & FOSTERING,4000210946,75952.74,
Department for Education,DEPARTMENT FOR EDUCATION,26/06/2015,Grants,Children's Services and Departmental Strategy Safeguarding Group,Grants to third sector organisations / not for profit organisations and other businesses,KIDSCAPE,4000210949,53231.18,
Department for Education,DEPARTMENT FOR EDUCATION,26/06/2015,Grants,Academies Delivery Group,Grants to third sector organisations / not for profit organisations and other businesses,HORNBEAM ACADEMY TRUST,4000210958,110000.00,
Department for Education,DEPARTMENT FOR EDUCATION,05/06/2015,Personnel Related,Teachers and Teaching Group,Payment to correct a duplicate credit for a DfE staff member's secondment costs.,UNITED LEARNING TRUST,4000209675,33750.34,
Department for Education,DEPARTMENT FOR EDUCATION,26/06/2015,Grants,Academies Delivery Group,Grants to third sector organisations / not for profit organisations and other businesses,WAKEFIELD CITY MULTI ACADEMIES TRUST,4000210977,25000.00,
Department for Education,DEPARTMENT FOR EDUCATION,26/06/2015,Grants,Children in Care Division,Grants to local authorities outside aggregate external funding or aggregate exchequer grant,TRAFFORD METROPOLITAN BOROUGH COUNCIL,4000210988,49821.00,
Department for Education,DEPARTMENT FOR EDUCATION,26/06/2015,Grants,Free School Group,Grants to third sector organisations / not for profit organisations and other businesses,FLOREAT EDUCATION ACADEMIES TRUST,4000211011,154000.00,
Department for Education,DEPARTMENT FOR EDUCATION,26/06/2015,Grants,Children's Services and Departmental Strategy Safeguarding Group,Grants to local authorities / other establishments within aggregate external funding or aggregate exchequer grant,DONCASTER METROPOLITAN BOROUGH COUNCIL,4000211012,32300.00,
Department for Education,DEPARTMENT FOR EDUCATION,26/06/2015,Grants,Closing the Gap Group,Grants to third sector organisations / not for profit organisations and other businesses,ARMY CADET FORCE ASSOCIATION,4000211020,36764.39,
Department for Education,DEPARTMENT FOR EDUCATION,26/06/2015,Grants,Children in Care Division,Grants to third sector organisations / not for profit organisations and other businesses,CONSORTIUM OF VOLUNTARY ADOPTION AGENCIES UK LTD,4000211022,513711.00,
Department for Education,DEPARTMENT FOR EDUCATION,26/06/2015,Grants,Academies Delivery Group,Grants to third sector organisations / not for profit organisations and other businesses,THE CHALLENGER MULTI ACADEMY TRUST,4000211023,25000.00,
Department for Education,DEPARTMENT FOR EDUCATION,29/06/2015,Professional Services Other,Children in Care Division,Research and evaluation activities,VOICE,4000211136,75000.00,
Department for Education,DEPARTMENT FOR EDUCATION,26/06/2015,Grants,Academies Delivery Group,Grants to third sector organisations / not for profit organisations and other businesses,JOHN FLAMSTEED COMMUNITY SCHOOL,4000211033,25000.00,
Department for Education,DEPARTMENT FOR EDUCATION,26/06/2015,Programme costs,"Childcare, Special Educational Needs and Children's Strategy Group",Funding to deliver policies (excluding consultancy) paid to third parties via a service delivery contract,MOTT MACDONALD LTD,4000211036,179978.40,
Department for Education,DEPARTMENT FOR EDUCATION,26/06/2015,Grants,Free School Group,Grants to third sector organisations / not for profit organisations and other businesses,NEW SCHOOLS NETWORK,4000211037,80104.48,
Department for Education,DEPARTMENT FOR EDUCATION,26/06/2015,Grants,Academies Delivery Group,Grants to third sector organisations / not for profit organisations and other businesses,CHURCH HILL MIDDLE SCHOOL,4000211042,25000.00,
Department for Education,DEPARTMENT FOR EDUCATION,26/06/2015,Travel,Children's Services and Departmental Strategy Directorate Support,"Staff business travel including air, coach, ferry, rail, taxi and car hire",REDFERN TRAVEL LTD,4000211059,285.15,
Department for Education,DEPARTMENT FOR EDUCATION,26/06/2015,Travel,Children in Care Division,"Staff business travel including air, coach, ferry, rail, taxi and car hire",REDFERN TRAVEL LTD,4000211059,18877.21,
Department for Education,DEPARTMENT FOR EDUCATION,26/06/2015,Travel,Children in Care Division,Staff training and conferences including related travel costs,REDFERN TRAVEL LTD,4000211059,0.79,
Department for Education,DEPARTMENT FOR EDUCATION,26/06/2015,Travel,Strategic Analysis and Research and Policy Impact Group,"Staff business travel including air, coach, ferry, rail, taxi and car hire",REDFERN TRAVEL LTD,4000211059,260.67,
Department for Education,DEPARTMENT FOR EDUCATION,26/06/2015,Travel,Children in Care Division,"Staff business travel including air, coach, ferry, rail, taxi and car hire",REDFERN TRAVEL LTD,4000211059,336.10,
Department for Education,DEPARTMENT FOR EDUCATION,26/06/2015,Travel,"Childcare, Special Educational Needs and Children's Strategy Group","Staff business travel including air, coach, ferry, rail, taxi and car hire",REDFERN TRAVEL LTD,4000211059,1350.64,
Department for Education,DEPARTMENT FOR EDUCATION,26/06/2015,Travel,"Childcare, Special Educational Needs and Children's Strategy Group","Staff business travel including air, coach, ferry, rail, taxi and car hire",REDFERN TRAVEL LTD,4000211059,2875.64,
Department for Education,DEPARTMENT FOR EDUCATION,26/06/2015,Travel,"Childcare, Special Educational Needs and Children's Strategy Group","Staff business travel including air, coach, ferry, rail, taxi and car hire",REDFERN TRAVEL LTD,4000211059,388.04,
Department for Education,DEPARTMENT FOR EDUCATION,26/06/2015,Travel,Information Technology Group,"Staff business travel including air, coach, ferry, rail, taxi and car hire",REDFERN TRAVEL LTD,4000211059,1759.27,
Department for Education,DEPARTMENT FOR EDUCATION,26/06/2015,Travel,Information Technology Group,"Staff business travel including air, coach, ferry, rail, taxi and car hire",REDFERN TRAVEL LTD,4000211059,4450.84,
Department for Education,DEPARTMENT FOR EDUCATION,26/06/2015,Travel,Information Technology Group,"Staff business travel including air, coach, ferry, rail, taxi and car hire",REDFERN TRAVEL LTD,4000211059,139.83,
Department for Education,DEPARTMENT FOR EDUCATION,26/06/2015,Travel,Information Technology Group,"Staff business travel including air, coach, ferry, rail, taxi and car hire",REDFERN TRAVEL LTD,4000211059,1229.72,
Department for Education,DEPARTMENT FOR EDUCATION,26/06/2015,Travel,Information Technology Group,"Staff business travel including air, coach, ferry, rail, taxi and car hire",REDFERN TRAVEL LTD,4000211059,2679.14,
Department for Education,DEPARTMENT FOR EDUCATION,26/06/2015,Travel,Information Technology Group,"Staff business travel including air, coach, ferry, rail, taxi and car hire",REDFERN TRAVEL LTD,4000211059,6215.92,
Department for Education,DEPARTMENT FOR EDUCATION,26/06/2015,Travel,Information Technology Group,"Staff business travel including air, coach, ferry, rail, taxi and car hire",REDFERN TRAVEL LTD,4000211059,5647.39,
Department for Education,DEPARTMENT FOR EDUCATION,26/06/2015,Travel,Information Technology Group,"Staff business travel including air, coach, ferry, rail, taxi and car hire",REDFERN TRAVEL LTD,4000211059,804.14,
Department for Education,DEPARTMENT FOR EDUCATION,26/06/2015,Travel,Information Technology Group,"Staff business travel including air, coach, ferry, rail, taxi and car hire",REDFERN TRAVEL LTD,4000211059,1889.44,
Department for Education,DEPARTMENT FOR EDUCATION,26/06/2015,Travel,Information Technology Group,"Staff business travel including air, coach, ferry, rail, taxi and car hire",REDFERN TRAVEL LTD,4000211059,188.89,
Department for Education,DEPARTMENT FOR EDUCATION,26/06/2015,Travel,Information Technology Group,"Staff business travel including air, coach, ferry, rail, taxi and car hire",REDFERN TRAVEL LTD,4000211059,1011.09,
Department for Education,DEPARTMENT FOR EDUCATION,26/06/2015,Travel,Information Technology Group,Staff training and conferences including related travel costs,REDFERN TRAVEL LTD,4000211059,0.53,
Department for Education,DEPARTMENT FOR EDUCATION,26/06/2015,Travel,Information Technology Group,"Staff business travel including air, coach, ferry, rail, taxi and car hire",REDFERN TRAVEL LTD,4000211059,1635.73,
Department for Education,DEPARTMENT FOR EDUCATION,26/06/2015,Travel,Finance and Commercial Group,"Staff business travel including air, coach, ferry, rail, taxi and car hire",REDFERN TRAVEL LTD,4000211059,6696.76,
Department for Education,DEPARTMENT FOR EDUCATION,26/06/2015,Travel,Property Asset Management Group,"Staff business travel including air, coach, ferry, rail, taxi and car hire",REDFERN TRAVEL LTD,4000211059,5209.23,
Department for Education,DEPARTMENT FOR EDUCATION,26/06/2015,Travel,Property Asset Management Group,Staff training and conferences including related travel costs,REDFERN TRAVEL LTD,4000211059,0.44,
Department for Education,NATIONAL COLLEGE FOR TEACHING AND LEADERSHIP AGENCY,26/06/2015,Travel,Operations Directorate,"Staff business travel including air, coach, ferry, rail, taxi and car hire",REDFERN TRAVEL LTD,4000211059,477.70,
Department for Education,DEPARTMENT FOR EDUCATION,26/06/2015,Travel,Strategic Analysis and Research and Policy Impact Group,"Staff business travel including air, coach, ferry, rail, taxi and car hire",REDFERN TRAVEL LTD,4000211059,4540.10,
Department for Education,DEPARTMENT FOR EDUCATION,26/06/2015,Travel,Strategic Analysis and Research and Policy Impact Group,Staff training and conferences including related travel costs,REDFERN TRAVEL LTD,4000211059,0.38,
Department for Education,DEPARTMENT FOR EDUCATION,26/06/2015,Travel,"Strategy, Performance and Implementation Group","Staff business travel including air, coach, ferry, rail, taxi and car hire",REDFERN TRAVEL LTD,4000211059,1981.02,
Department for Education,DEPARTMENT FOR EDUCATION,26/06/2015,Travel,Finance and Commercial Group,"Staff business travel including air, coach, ferry, rail, taxi and car hire",REDFERN TRAVEL LTD,4000211059,14337.29,
Department for Education,DEPARTMENT FOR EDUCATION,26/06/2015,Travel,Finance and Commercial Group,Staff training and conferences including related travel costs,REDFERN TRAVEL LTD,4000211059,0.63,
Department for Education,DEPARTMENT FOR EDUCATION,26/06/2015,Travel,Human Resources Group,"Staff business travel including air, coach, ferry, rail, taxi and car hire",REDFERN TRAVEL LTD,4000211059,10470.42,
Department for Education,DEPARTMENT FOR EDUCATION,26/06/2015,Travel,Human Resources Group,Staff training and conferences including related travel costs,REDFERN TRAVEL LTD,4000211059,5.08,
Department for Education,DEPARTMENT FOR EDUCATION,26/06/2015,Travel,Human Resources Group,"Staff business travel including air, coach, ferry, rail, taxi and car hire",REDFERN TRAVEL LTD,4000211059,225.81,
Department for Education,DEPARTMENT FOR EDUCATION,26/06/2015,Travel,Human Resources Group,"Staff business travel including air, coach, ferry, rail, taxi and car hire",REDFERN TRAVEL LTD,4000211059,6306.71,
Department for Education,DEPARTMENT FOR EDUCATION,26/06/2015,Travel,Free School Group,"Staff business travel including air, coach, ferry, rail, taxi and car hire",REDFERN TRAVEL LTD,4000211059,15998.26,
Department for Education,DEPARTMENT FOR EDUCATION,26/06/2015,Travel,Education Standards Directorate,"Staff business travel including air, coach, ferry, rail, taxi and car hire",REDFERN TRAVEL LTD,4000211059,2848.28,
Department for Education,DEPARTMENT FOR EDUCATION,26/06/2015,Travel,System Reform Group,"Staff business travel including air, coach, ferry, rail, taxi and car hire",REDFERN TRAVEL LTD,4000211059,8104.66,
Department for Education,DEPARTMENT FOR EDUCATION,26/06/2015,Travel,System Reform Group,"Staff business travel including air, coach, ferry, rail, taxi and car hire",REDFERN TRAVEL LTD,4000211059,367.33,
Department for Education,DEPARTMENT FOR EDUCATION,26/06/2015,Travel,System Reform Group,"Staff business travel including air, coach, ferry, rail, taxi and car hire",REDFERN TRAVEL LTD,4000211059,124.77,
Department for Education,DEPARTMENT FOR EDUCATION,26/06/2015,Travel,System Reform Group,"Staff business travel including air, coach, ferry, rail, taxi and car hire",REDFERN TRAVEL LTD,4000211059,116.86,
Department for Education,DEPARTMENT FOR EDUCATION,26/06/2015,Travel,Education Funding Group,"Staff business travel including air, coach, ferry, rail, taxi and car hire",REDFERN TRAVEL LTD,4000211059,1801.36,
Department for Education,DEPARTMENT FOR EDUCATION,26/06/2015,Travel,Assessment and Curriculum and General Qualifications Group,"Staff business travel including air, coach, ferry, rail, taxi and car hire",REDFERN TRAVEL LTD,4000211059,3815.98,
Department for Education,DEPARTMENT FOR EDUCATION,26/06/2015,Travel,School Standards Group,"Staff business travel including air, coach, ferry, rail, taxi and car hire",REDFERN TRAVEL LTD,4000211059,2940.78,
Department for Education,DEPARTMENT FOR EDUCATION,26/06/2015,Travel,School Standards Group,Non-contractor's travel expenses,REDFERN TRAVEL LTD,4000211059,1.44,
Department for Education,DEPARTMENT FOR EDUCATION,26/06/2015,Travel,School Standards Group,Staff travel expenses for travel overseas on official duty,REDFERN TRAVEL LTD,4000211059,7.54,
Department for Education,DEPARTMENT FOR EDUCATION,26/06/2015,Travel,Systems and Accountability Group,"Staff business travel including air, coach, ferry, rail, taxi and car hire",REDFERN TRAVEL LTD,4000211059,15799.95,
Department for Education,DEPARTMENT FOR EDUCATION,26/06/2015,Travel,School Standards Group,"Staff business travel including air, coach, ferry, rail, taxi and car hire",REDFERN TRAVEL LTD,4000211059,5858.47,
Department for Education,DEPARTMENT FOR EDUCATION,26/06/2015,Travel,Infrastructure and Funding Directorate Support,"Staff business travel including air, coach, ferry, rail, taxi and car hire",REDFERN TRAVEL LTD,4000211059,648.25,
Department for Education,DEPARTMENT FOR EDUCATION,26/06/2015,Travel,Education Funding Group,"Staff business travel including air, coach, ferry, rail, taxi and car hire",REDFERN TRAVEL LTD,4000211059,1476.94,
Department for Education,DEPARTMENT FOR EDUCATION,26/06/2015,Travel,Due Diligence and Counter Extremism Group,"Staff business travel including air, coach, ferry, rail, taxi and car hire",REDFERN TRAVEL LTD,4000211059,1152.97,
Department for Education,DEPARTMENT FOR EDUCATION,26/06/2015,Travel,Closing the Gap Group,"Staff business travel including air, coach, ferry, rail, taxi and car hire",REDFERN TRAVEL LTD,4000211059,7797.02,
Department for Education,DEPARTMENT FOR EDUCATION,26/06/2015,Travel,Teachers and Teaching Group,"Staff business travel including air, coach, ferry, rail, taxi and car hire",REDFERN TRAVEL LTD,4000211059,6574.10,
Department for Education,DEPARTMENT FOR EDUCATION,26/06/2015,Travel,Academies Delivery Group,"Staff business travel including air, coach, ferry, rail, taxi and car hire",REDFERN TRAVEL LTD,4000211059,725.92,
Department for Education,DEPARTMENT FOR EDUCATION,26/06/2015,Travel,Academies Delivery Group,"Staff business travel including air, coach, ferry, rail, taxi and car hire",REDFERN TRAVEL LTD,4000211059,18573.35,
Department for Education,DEPARTMENT FOR EDUCATION,26/06/2015,Travel,Academies Delivery Group,Staff training and conferences including related travel costs,REDFERN TRAVEL LTD,4000211059,1.74,
Department for Education,DEPARTMENT FOR EDUCATION,26/06/2015,Travel,Academies Delivery Group,"Staff business travel including air, coach, ferry, rail, taxi and car hire",REDFERN TRAVEL LTD,4000211059,101.17,
Department for Education,DEPARTMENT FOR EDUCATION,26/06/2015,Travel,Academies Delivery Group,Staff training and conferences including related travel costs,REDFERN TRAVEL LTD,4000211059,0.20,
Department for Education,DEPARTMENT FOR EDUCATION,26/06/2015,Travel,Academies Delivery Group,"Staff business travel including air, coach, ferry, rail, taxi and car hire",REDFERN TRAVEL LTD,4000211059,509.03,
Department for Education,DEPARTMENT FOR EDUCATION,26/06/2015,Travel,Academies Delivery Group,"Staff business travel including air, coach, ferry, rail, taxi and car hire",REDFERN TRAVEL LTD,4000211059,224.74,
Department for Education,DEPARTMENT FOR EDUCATION,26/06/2015,Travel,Free School Group,"Staff business travel including air, coach, ferry, rail, taxi and car hire",REDFERN TRAVEL LTD,4000211059,132.14,
Department for Education,DEPARTMENT FOR EDUCATION,26/06/2015,Travel,Regional School Commissioners Group,"Staff business travel including air, coach, ferry, rail, taxi and car hire",REDFERN TRAVEL LTD,4000211059,396.97,
Department for Education,DEPARTMENT FOR EDUCATION,26/06/2015,Travel,Regional School Commissioners Group,"Staff business travel including air, coach, ferry, rail, taxi and car hire",REDFERN TRAVEL LTD,4000211059,1122.45,
Department for Education,DEPARTMENT FOR EDUCATION,26/06/2015,Travel,Regional School Commissioners Group,"Staff business travel including air, coach, ferry, rail, taxi and car hire",REDFERN TRAVEL LTD,4000211059,171.25,
Department for Education,DEPARTMENT FOR EDUCATION,26/06/2015,Travel,Regional School Commissioners Group,"Staff business travel including air, coach, ferry, rail, taxi and car hire",REDFERN TRAVEL LTD,4000211059,1346.01,
Department for Education,DEPARTMENT FOR EDUCATION,26/06/2015,Travel,Regional School Commissioners Group,"Staff business travel including air, coach, ferry, rail, taxi and car hire",REDFERN TRAVEL LTD,4000211059,1218.80,
Department for Education,DEPARTMENT FOR EDUCATION,26/06/2015,Travel,Regional School Commissioners Group,"Staff business travel including air, coach, ferry, rail, taxi and car hire",REDFERN TRAVEL LTD,4000211059,1524.17,
Department for Education,DEPARTMENT FOR EDUCATION,26/06/2015,Travel,Regional School Commissioners Group,"Staff business travel including air, coach, ferry, rail, taxi and car hire",REDFERN TRAVEL LTD,4000211059,1149.54,
Department for Education,DEPARTMENT FOR EDUCATION,26/06/2015,Travel,Regional School Commissioners Group,"Staff business travel including air, coach, ferry, rail, taxi and car hire",REDFERN TRAVEL LTD,4000211059,2321.17,
Department for Education,DEPARTMENT FOR EDUCATION,26/06/2015,Travel,Regional School Commissioners Group,"Staff business travel including air, coach, ferry, rail, taxi and car hire",REDFERN TRAVEL LTD,4000211059,389.72,
Department for Education,DEPARTMENT FOR EDUCATION,26/06/2015,Travel,Private Office,"Staff business travel including air, coach, ferry, rail, taxi and car hire",REDFERN TRAVEL LTD,4000211059,319.74,
Department for Education,DEPARTMENT FOR EDUCATION,26/06/2015,Travel,Private Office,"Staff business travel including air, coach, ferry, rail, taxi and car hire",REDFERN TRAVEL LTD,4000211059,639.52,
Department for Education,DEPARTMENT FOR EDUCATION,26/06/2015,Travel,Legal Advisers Office,"Staff business travel including air, coach, ferry, rail, taxi and car hire",REDFERN TRAVEL LTD,4000211059,1117.27,
Department for Education,DEPARTMENT FOR EDUCATION,26/06/2015,Travel,Public Communications Group,"Staff business travel including air, coach, ferry, rail, taxi and car hire",REDFERN TRAVEL LTD,4000211059,7111.43,
Department for Education,DEPARTMENT FOR EDUCATION,26/06/2015,Travel,Public Communications Group,Staff training and conferences including related travel costs,REDFERN TRAVEL LTD,4000211059,3.44,
Department for Education,DEPARTMENT FOR EDUCATION,26/06/2015,Travel,Communications Group,"Staff business travel including air, coach, ferry, rail, taxi and car hire",REDFERN TRAVEL LTD,4000211059,1777.43,
Department for Education,STANDARDS AND TESTING AGENCY,26/06/2015,Travel,Standards and Testing Agency Admin,"Staff business travel including air, coach, ferry, rail, taxi and car hire",REDFERN TRAVEL LTD,4000211059,10243.11,
Department for Education,STANDARDS AND TESTING AGENCY,26/06/2015,Travel,Test Development Division,"Staff business travel including air, coach, ferry, rail, taxi and car hire",REDFERN TRAVEL LTD,4000211059,2142.18,
Department for Education,STANDARDS AND TESTING AGENCY,26/06/2015,Travel,Test Operations Division,"Staff business travel including air, coach, ferry, rail, taxi and car hire",REDFERN TRAVEL LTD,4000211059,75.06,
Department for Education,STANDARDS AND TESTING AGENCY,26/06/2015,Travel,Test Operations Division,"Staff business travel including air, coach, ferry, rail, taxi and car hire",REDFERN TRAVEL LTD,4000211059,863.94,
Department for Education,STANDARDS AND TESTING AGENCY,26/06/2015,Travel,Test Development Division,"Staff business travel including air, coach, ferry, rail, taxi and car hire",REDFERN TRAVEL LTD,4000211059,2325.37,
Department for Education,NATIONAL COLLEGE FOR TEACHING AND LEADERSHIP AGENCY,26/06/2015,Travel,International Business Unit,"Staff business travel including air, coach, ferry, rail, taxi and car hire",REDFERN TRAVEL LTD,4000211059,1.41,
Department for Education,NATIONAL COLLEGE FOR TEACHING AND LEADERSHIP AGENCY,26/06/2015,Travel,Operations Directorate,Non-contractor's travel expenses,REDFERN TRAVEL LTD,4000211059,2.92,
Department for Education,NATIONAL COLLEGE FOR TEACHING AND LEADERSHIP AGENCY,15/06/2015,Office Solutions,Operations Directorate,Office Supplies,PROLOG,4000210115,4.81,
Department for Education,NATIONAL COLLEGE FOR TEACHING AND LEADERSHIP AGENCY,26/06/2015,Travel,Operations Directorate,"Staff business travel including air, coach, ferry, rail, taxi and car hire",REDFERN TRAVEL LTD,4000211059,8697.31,
Department for Education,NATIONAL COLLEGE FOR TEACHING AND LEADERSHIP AGENCY,26/06/2015,Travel,Operations Directorate,Non-contractor's travel expenses,REDFERN TRAVEL LTD,4000211059,0.10,
Department for Education,NATIONAL COLLEGE FOR TEACHING AND LEADERSHIP AGENCY,26/06/2015,Travel,Operations Directorate,"Staff business travel including air, coach, ferry, rail, taxi and car hire",REDFERN TRAVEL LTD,4000211059,663.14,
Department for Education,NATIONAL COLLEGE FOR TEACHING AND LEADERSHIP AGENCY,26/06/2015,Travel,Operations Directorate,"Staff business travel including air, coach, ferry, rail, taxi and car hire",REDFERN TRAVEL LTD,4000211059,159.47,
Department for Education,NATIONAL COLLEGE FOR TEACHING AND LEADERSHIP AGENCY,26/06/2015,Travel,Operations Directorate,"Staff business travel including air, coach, ferry, rail, taxi and car hire",REDFERN TRAVEL LTD,4000211059,7466.08,
Department for Education,NATIONAL COLLEGE FOR TEACHING AND LEADERSHIP AGENCY,26/06/2015,Travel,Operations Directorate,Non-contractor's travel expenses,REDFERN TRAVEL LTD,4000211059,44.63,
Department for Education,NATIONAL COLLEGE FOR TEACHING AND LEADERSHIP AGENCY,26/06/2015,Travel,Delivery Directorate,"Staff business travel including air, coach, ferry, rail, taxi and car hire",REDFERN TRAVEL LTD,4000211059,23947.12,
Department for Education,NATIONAL COLLEGE FOR TEACHING AND LEADERSHIP AGENCY,26/06/2015,Travel,Delivery Directorate,Subsistence and lodging allowances for official duty,REDFERN TRAVEL LTD,4000211059,4.51,
Department for Education,NATIONAL COLLEGE FOR TEACHING AND LEADERSHIP AGENCY,26/06/2015,Travel,Delivery Directorate,Staff training and conferences including related travel costs,REDFERN TRAVEL LTD,4000211059,0.56,
Department for Education,DEPARTMENT FOR EDUCATION,26/06/2015,Grants,Families Group,Grants to third sector organisations / not for profit organisations and other businesses,UNIVERSITY OF KENT,4000211063,33872.74,
Department for Education,DEPARTMENT FOR EDUCATION,29/06/2015,Programme costs,Children's Services and Departmental Strategy Safeguarding Group,Funding to deliver policies (excluding consultancy) paid to third parties via a service delivery contract,KPMG LLP,4000211073,420999.41,
Department for Education,DEPARTMENT FOR EDUCATION,29/06/2015,ICT,Systems and Accountability Group,ICT Services,CAPGEMINI UK PLC,4000211086,32704.37,
Department for Education,DEPARTMENT FOR EDUCATION,25/06/2015,Facilities,Property Asset Management Group,"Building maintenance and repair, including repainting, replacing flooring, etc.",SODEXHO PRESTIGE LTD,4000210915,32064.36,
Department for Education,DEPARTMENT FOR EDUCATION,29/06/2015,Programme costs,Assessment and Curriculum and General Qualifications Group,Funding to deliver policies (excluding consultancy) paid to third parties via a service delivery contract,MYSCIENCE CO LTD,4000211103,105157.76,
Department for Education,DEPARTMENT FOR EDUCATION,29/06/2015,Grants,Free School Group,Grants to third sector organisations / not for profit organisations and other businesses,WEST MIDLANDS CONSTRUCTION UTC,4000211105,26920.00,
Department for Education,DEPARTMENT FOR EDUCATION,29/06/2015,Grants,Free School Group,Grants to third sector organisations / not for profit organisations and other businesses,CREATIVE INDUSTRIES UTC,4000211108,33409.00,
Department for Education,DEPARTMENT FOR EDUCATION,29/06/2015,Grants,Free School Group,Grants to third sector organisations / not for profit organisations and other businesses,CLEANTECH UTC,4000211112,30000.00,
Department for Education,DEPARTMENT FOR EDUCATION,29/06/2015,Grants,Academies Delivery Group,Grants to third sector organisations / not for profit organisations and other businesses,ST CHRISTOPHERS COFE MULTI ACADEMY TRUST,4000211113,25000.00,
Department for Education,DEPARTMENT FOR EDUCATION,29/06/2015,Programme costs,Children in Care Division,Funding to deliver policies (excluding consultancy) paid to third parties via a service delivery contract,NYAS,4000211114,45000.00,
Department for Education,DEPARTMENT FOR EDUCATION,29/06/2015,Grants,Free School Group,Grants to third sector organisations / not for profit organisations and other businesses,BURTON AND SOUTH DERBYSHIRE UTC,4000211117,30000.00,
Department for Education,DEPARTMENT FOR EDUCATION,29/06/2015,Grants,Free School Group,Grants to third sector organisations / not for profit organisations and other businesses,LONDON DESIGN & ENGINEERING UTC,4000211118,30000.00,
Department for Education,DEPARTMENT FOR EDUCATION,29/06/2015,Grants,Free School Group,Grants to third sector organisations / not for profit organisations and other businesses,SCIENCE UTC OXFORDSHIRE,4000211119,30000.00,
Department for Education,DEPARTMENT FOR EDUCATION,29/06/2015,Grants,Free School Group,Grants to third sector organisations / not for profit organisations and other businesses,DERBY MANUFACTURING UTC,4000211121,30000.00,
Department for Education,DEPARTMENT FOR EDUCATION,29/06/2015,Grants,Free School Group,Grants to third sector organisations / not for profit organisations and other businesses,MEDWAY UTC LTD,4000211122,30000.00,
Department for Education,DEPARTMENT FOR EDUCATION,29/06/2015,Grants,Free School Group,Grants to third sector organisations / not for profit organisations and other businesses,EDUCATION CENTRAL UTC,4000211123,30000.00,
Department for Education,DEPARTMENT FOR EDUCATION,29/06/2015,Grants,Free School Group,Grants to third sector organisations / not for profit organisations and other businesses,MULBERRY UTC,4000211126,30000.00,
Department for Education,DEPARTMENT FOR EDUCATION,29/06/2015,Programme costs,Closing the Gap Group,Funding to deliver policies (excluding consultancy) paid to third parties via a service delivery contract,CHILDRENS FOOD TRUST,4000211132,35297.90,
Department for Education,DEPARTMENT FOR EDUCATION,10/06/2015,Professional Services Other,Finance and Commercial Group,Shared corporate accounting services,SHARED SERVICES CONNECTED LTD,4000209890,284852.19,
Department for Education,STANDARDS AND TESTING AGENCY,29/06/2015,Office Solutions,Test Operations Division,Document Storage,WILLIAMS LEA,4000211138,81287.97,
Department for Education,DEPARTMENT FOR EDUCATION,29/06/2015,Grants,Academies Delivery Group,Grants to third sector organisations / not for profit organisations and other businesses,BECKFOOT & HAZELBECK TRUST,4000211141,62500.00,
Department for Education,DEPARTMENT FOR EDUCATION,29/06/2015,Grants,Academies Delivery Group,Grants to third sector organisations / not for profit organisations and other businesses,THE CHALLENGER MULTI ACADEMY TRUST,4000211147,45000.00,
Department for Education,DEPARTMENT FOR EDUCATION,30/06/2015,ICT,Information Technology Group,ICT Services,SOFTCAT LTD,4000211148,98848.80,
Department for Education,DEPARTMENT FOR EDUCATION,30/06/2015,Programme costs,Assessment and Curriculum and General Qualifications Group,Funding to deliver policies (excluding consultancy) paid to third parties via a service delivery contract,THE POETRY ARCHIVE,4000211158,59400.00,
Department for Education,DEPARTMENT FOR EDUCATION,30/06/2015,Grants,Families Group,Grants to third sector organisations / not for profit organisations and other businesses,CORNERSTONE TRAINING & SUPPORT LTD,4000211167,34091.00,
Department for Education,STANDARDS AND TESTING AGENCY,30/06/2015,Programme costs,Test Development Division,Funding to deliver policies (excluding consultancy) paid to third parties via a service delivery contract,AUSTRALIAN COUNCIL FOR EDUCATIONAL RESEARCH,3000334,46251.50,
Department for Education,DEPARTMENT FOR EDUCATION,30/06/2015,Redactions,Various,"The total redacted transactions, including funding payment to Education Funding Agency. See Technical Notes for further information.",Various,Various,5314040872.84,
